Workbook

Sheet Instructions
A1: This is a farm business decision calculator that has 5 worksheets. There are fields that can be completed by the user. It is up to 19 columns wide and 191 rows.
A2: CASH BASIS CAPITAL INVESTMENT WORKSHEET
A4: A BUDGETING WORKSHEET developed by:
A6: Agriculture Development Branch
A7: Business Management Unit
A8: Ontario Ministry of Agriculture, Food and Rural Affairs
A10: Revised December 2016
A11: NOTICE
A12: Information contained in this document is derived from sources believed to be accurate. The user of this worksheet assumes all responsibility.
A14: Reproduction of the contents or spreadsheet, in whole or in part, is permitted with suitable credit.
A16: TABLE OF CONTENTS
A17: Click on the Table of Content items below to go to that section:
A18: Purpose and Scope of the Cash Basis Capital Investment Worksheet
A19: Required Rate of Return (Present Value)
A20: Data Entry
A21: Cash Basis Investment Worksheet Guide to Use
A22: Input
A23: Disadvantages/Advantages
A24: Reports Page – Cash Flow Analysis
A25: Tax Page
A26: Capital Cost Allowance (CCA) Rate Table
A28: PURPOSE AND SCOPE OF
A29: THE CASH BASIS CAPITAL INVESTMENT WORKSHEET
A31: The Cash Basis Capital Investment Worksheet aims to provide farmers and farm advisors with a reliable tool to assist in the management decision making process of capital investment.
A33: The Capital Investment Worksheet has four (4) sections:
A35: 1. Input
A36: 2. Cash Basis Investment Report: A 15 year Cash Flow Analysis ( before and after tax )
A37: 3. Tax Summary on Investment, Compares Tax Liability for Sole Proprietorship, Partnership, or Corporation over a 15 year planning horizon
A38: 4. CCA Rate Table
A40: The Capital Investment Worksheet Investment Analysis section:
A41: · considers cash revenues and expenses from the investment
A42: · considers tax implications of investment
A43: · provides opportunity to have investment in 3 different areas in any one analysis scenario
A44: · provides opportunity to finance with either
A45: · personal funds
A46: · 1, 2, or 3 loans
A47: · is capable of consideration of residual or resale values of capitalisation
A48: · considers the fact that money changes value over time
A49: · accounts for the Net Present Value of the investment
A51: REQUIRED RATE OF RETURN
A52: All of the present values given in the Cash Basis Capital Investment Worksheet are based on a certain "Required Rate of Return". This rate is used to discount (or bring future values back to their present values) all future income, expenses or capital values entered in the spreadsheet.
A54: Many articles have been written on the subject of discount rates and many conflicting ideas have been proposed as to what should be included in such rates. In this spreadsheet, it is left to the farmer to decide what level of return they wish to consider appropriate. The most frequent guideline in this matter is the current or long term interest rate on the money market. Used as a basis, it is adjusted upwards or downwards to take into consideration such factors as risk, opportunity cost, return on investment, return on labour and management, return after income tax, etc. Farmers here have to judge the state of the farming industry, the economy at large, their own efficiency as farm manager and all of the factors mentioned above, and, estimate as fairly as possible their own required rate of return. Consider different rates of return and see if the conclusion is the same.
A56: DATA ENTRY
A57: To complete the input section, it is suggested that you have available for your information:
A58: The producer's most recent income tax statement.
A59: Program Updating Material
A60: - industry newsletters
A61: - producer magazines
A62: - enterprise budgets
A63: - business analysis reports
A64: - bank loan / credit information
A65: NOTE:
A66: The input section has two (2) different formats:
A68: 1) Blue - producer related information that can be edited/changed
A69: 2) Black - subject or guidance information or cells with calculations.
A71: Place the cursor over cells with red triangles in the upper right corner of the cell to read the comments
A73: CASH BASIS CAPITAL INVESTMENT WORKSHEET
A74: GUIDE TO USE
A76: This worksheet is designed to assist a manager with the decision making process related to a capital investment.
A78: Input:
A80: Fill input data in range A9 to G47 prior to entering data in range K5 to O59.
A82: Cell C10 – Enter Farm or Producer Name
A84: Cell D12 – Enter Description of Investment
A86: Cell D16 – Enter the investment return rate one could acquire if money was to be invested
A87: in another known instrument ( ie – Bank GIC’s, Savings Bond, etc.)
A89: Cell H16 – Enter the number of years you want the analyzer to plan over. The maximum is 15 years. One must enter a number between 1 to 15. It is recommended to leave as 15.
A91: Cell D17 - Enter amount of cash the producer will put into the investment from savings or cash .
A93: Cell F19 - Enter the present Taxable Income of the business
A94: Note: If the producer is a partnership, or a corporation, ensure that you enter the taxable income of the business. This is an important number, as it will influence the tax schedules for the additional investment.
A96: Cell E21 – Enter the Business Structure Code. 1 for sole proprietorship, 2 for a partnership or income splitting, 3 for a corporation. This is also an important entry, as it too influences the tax schedule for the additional investment.
A98: Cell E23 – If you entered a 2 for a partnership in Cell E21, indicate the number of partners or individuals who split the taxable income of the business.
A100: Input: Purchase and Loan Information
A102: In this area you have the opportunity to enter three purchases:
A103: Purchase #1, #2, #3 – In this area, enter ( in Cells D29, D36, D43 ) a description of the purchase. Enter ( in Cells D30, D37, D44 ) the dollar amount the producer may spend on each asset purchase. In Cell D31, D38, D45 enter the percent of each investment that is eligible for as Capital Cost Allowance depreciation on the income tax of the business. In Cell D32, D39, D46, enter the percent of that eligible amount that can qualify in the First year ( ie – year of acquisition ) .
A105: In Cell D33, D40, D47 enter the Capital Cost Allowance rate of depreciation per year
A107: Loan Information: The program permits a producer to have up to three loans attributable to the investment. It should be noted, that for the loan calculator to work, the interest rate and term must be a number greater than zero. For a zero interest rate, enter .001.
A109: Loan 1, Loan 2, Loan 3 –Enter the dollar amount ( Cell G29, G36, G43 ), the effective interest rate ( Cell G30, G37, G44 ), and the term in years ( Cell G31, G38, G45 ), for each loan . Enter the number of payments per year ( Cell G32, G39, G46 ).
A110: Enter the number of times the loan is compounded per year ( Cell G33, G40, G47). Mortgages are usually compounded 2 times per year. Other types of loans are usually compounded 12 times per year.
A112: Note: It is not necessary to have 3 loans. The total amount borrowed can be in Loan 1 for the entire investment.
A114: Input Advantages / Disadvantages
A115: This section has 6 sections, 3 in Disadvantage, 3 in Advantages.
A117: Disadvantages:
A119: Added Operating Expenses – This section allows for 13 direct operating expenses to be recorded, in lines 5 to 17. The program allows for a description of the expense, an adjustment for inflation ( deflation is minus ), and the annual amount. This factor is an average percent increase/decrease per year, that the producer budgets for over the planning period.
A121: This section has an automatic calculation for
A122: Reduced Income
A123: interest lost on the down payment provided from the cash or savings of the producer. It also has blank lines for three (3) other items should there be additional potential for lost income. Enter the description, the a return you could expect, if funds were invested in another option, and the annual amount.
A124: Non-Annual Expenses
A125: This section is for the entry of an expense, in a specific year of the planning period, that is not on an annual basis (ie – a major repair in the 10th yr.) Enter the year (Cell M28 to 31) and the amount (Cell O28 to 31). A description can be entered in (Cell K28 to 31).
A127: Advantages :
A129: Capital Sales / Disposals
A130: This section is for the entry of a sale, in a specific year of the planning period, that is not on an annual basis (i.e. – a sale of used equipment)
A132: Enter the year (Cell M37 to 40) and the amount (Cell O37 to 40). A description can be entered in (Cell K37 to 40).
A134: Added Annual Income
A135: This section is broken into two (2) parts :
A137: Operating Revenue – Similar to the section on Operating Expense, the program permits description and entry of up to 9 different revenues. Enter the description and the inflation / deflation factor, and the amount.
A139: Reduced Costs – Program permits entry of up to 4 costs that would be reduced, as a result of the investment (ie – rental charges, custom rates). Enter the description and the inflation / deflation factor, and the amount.
A141: REPORTS PAGE - CASH BASIS CAPITAL INVESTMENT WORKSHEET
A142: (CASH FLOW ANALYSIS)
A144: This page requires no input. It is a summary of the information provided on the input page.
A146: The top section, rows 7 to 14 indicate the Basic Information, and Details on the Loans for each purchase category.
A148: The next section, rows 19 to 30 show the detail on the Principal and Interest Payments for each of the loans.
A150: It is now important that the user appreciate the impact of ‘Discounting’ and Future Value of money.
A152: Note that in Column E, rows 19- 21, the actual amount of the total principal borrowed is shown. Then in Column C, rows 23 – 25, the Net Present Value of the Future Payments ( Principal and Interest paid in years 1 to 15 ) , discounted by the Required Rate of Return , that was entered on the Input tab. Another way of looking at this is – You make an investment. The investment requires a series of future payments. However, the investment returns an income, and the income is greater than the required payment, then you discount the actual investment required payment, by the amount of the actual required payment, that came from the profit of making the original investment. Another approach to understanding the concept is simply – You borrow a dollar. You have to pay it back in one year. The dollar made you 10 cents. The actual amount to be paid back is very close to 90 cents in today’s dollars, as 10 cents came from the investment of the dollar.
A154: In columns E to S, the 12 months are `cash flowed’ out. The entries are in Present Dollars, and are not discounted. The impact of discounting is only considered in the Net Present Value Column.
A156: In rows 32 to 81 , the Disadvantages and Advantages as entered on the input, are cash flowed across 15 year period. In column D, the expected annual percent inflation is shown . The entries are adjusted by this amount (can be positive or negative) each year over the planning period.
A158: Row 55 is the Total of the Disadvantages, and Row 84 is the Total of the Advantages. The Disadvantages are subtracted from the Advantages, and the Net Gain (or Loss) is shown in Row 86. The one number that indicates the overall return from the investment is cell C86. This is the Net Gain or Loss in Net Present Value terms. Regardless of the length of the planning period, this number brings the total for the period down to today’s dollars.
A161: Rows 89 to 107 evaluate the impact of Taxation and Business Structure
A162: on the cash flow in each year of the planning period. Rows 94 to 101 make the adjustment to the Capital Cost Allowance tables for each of the purchases, and calculates the eligible amount available for depreciation, as an Eligible Capital Cost Allowance Expense for that year. It is important to note that the program is formulated to write off 100 % of livestock purchases, in the first year. It is important to enter livestock as 100% eligible deduction at a rate of 100% in the first year.
A164: To this point Columns ‘C’ to ‘S’ have calculated the Net Gain or Loss in cash dollars
A165: (shown in row 86) and the Additional or Reduced Capital Cost Allowance that can be used by the user to impact on the amount of tax that is payable by the operation (shown in row 103).
A166: It is an important concept of the program, to appreciate the next steps. The program takes the Present Taxable Income (the amount shown in cell C105). This is the Taxable income of the operation before the investment. The program then adds the Net Gain or Loss shown in Row 86, to the Present Taxable Income, and calculates the Tax Payable after the investment, based on the Tax Rates of the Business Structure, and shows the new Tax Payable in line 107.
A168: The program then takes all the information and gives you a yearly summary. Row 109 ,
A169: Net cash Position (Before Tax) (including Principal Payments) which is a repeat of Row 86, Net Gain or Loss. To this number is added the Increase or Decrease in Tax Payable , which is shown in Row 112. The Increase or Decrease in Tax Payable is simply the Tax Payable Before the Investment (shown in cell C 107) subtracted from the Tax Payable after the investment, for each of the planning years.
A171: Row 114 – Net Cash Position after Taxes and Principal are Paid is then:
A173: Taxable Income Before (Cell C105)
A174: Less: Tax Payable Before (Cell C107)
A175: Plus: Net Gain or Loss in Cash Position (Row 109)
A176: Less: Tax Paid Increase or (Decrease) (Row 112)
A178: Row 116 – Net Change in Position from Investment is then:
A180: Row 114 – Net Cash Position after Taxes and Principal are Paid
A181: Plus: Taxable Income Before (Cell C105)
A182: Less: Tax Payable Before (Cell C107)
A184: Row 117 – ‘CUMULATIVE’ Position adds the results of the previous years, (commencing in year 2), to the Net Change in Position from Investment row 116 for that year, to show the Cumulative Net Change in Position of the Investment.
A185: Rows 114 and 116 are very important lines to the investor, as they indicate at what point they can expect to see a positive return from the investment, and at what point any previous losses are recovered.
A187: Tax Page
A188: This page permits a user to compare the tax implications from the business structure. It shows the same investment, and compares the tax payable before and after for the three different business structures – Sole Proprietorship, Partnership and Corporation.
A190: CCA Rate Table
A191: This page is information as to specific tax rates for various capital investments. It is to assist the user in completing the Input section on Investment, Cumulative Capital Account Percentage, % CCA Eligibility and Rate to Use .
A193: End of worksheet

Sheet Input
K1: ADDED COSTS AND REDUCED RETURNS
D2: Ministry of Agriculture, Food and Rural Affairs | Q2: NOTE:
D3: AGRICULTURE DEVELOPMENT BRANCH | J3: ADDED OPERATING EXPENSES | M3: INFLATION FACTOR | O3: AMOUNT | Q3: Entries Go from
D4: BUSINESS MANAGEMENT UNIT | Q4: Line 1 to 60
K5: Feed | M5: 0 | N5: % | O5: 160000
K6: Health & Breeding | M6: 2 | N6: % | O6: 900
C7: CASH BASIS CAPITAL INVESTMENT WORKSHEET | K7: Marketing | M7: 2 | N7: % | O7: 9320
K8: Hydro Telephone | M8: 3 | N8: % | O8: 3540
K9: Repairs and maintenance | M9: 3 | N9: % | O9: 4260
B10: NAME: | C10: Jolene and Joe Farms | F10: DATE: | G10: =NOW() -> 2024-11-29T15:38:56.810 | K10: Labour | M10: 2 | N10: % | O10: 8000
K11: Operating interest | M11: 0.1 | N11: % | O11: 1840
B12: PROPOSED INVESTMENT: | D12: 2000 head hog finishing barn | K12: Livestock purchases | M12: 0 | N12: % | O12: 140000
K13: Taxes & insurance | M13: 2 | N13: % | O13: 2840
B14: - BASIC INFORMATION - | K14: . | M14: 0 | N14: % | O14: 0
K15: . | M15: 0 | N15: % | O15: 0
B16: REQUIRED RATE OF RETURN: | D16: 5 | E16: % | F16: # OF YEARS OF PROJECTION: | H16: 15 | K16: . | M16: 0 | N16: % | O16: 0
B17: DOWN PAYMENT PROVIDED : | D17: 200000 | F17: ( MAXIMUM 15 YEARS ) | K17: . | M17: 0 | N17: % | O17: 0
J18: REDUCED INCOME | M18: INFLATION FACTOR | O18: AMOUNT
B19: PRESENT TAXABLE INCOME: | F19: 40000
F20: Business Structure Codes: | K20: Down Pymnt Interest Lost | M20: YOUR RATE OF RETURN | O20: =Reports!E49 -> 10000
B21: BUSINESS STRUCTURE (enter number code) : | E21: 2 | F21: Sole Proprietorship | G21: 1 | K21: . | M21: 0 | N21: % | O21: 0
F22: Partnership | G22: 2 | K22: . | M22: 0 | N22: % | O22: 0
B23: Note: If a Partnership Enter Number of Partners | E23: 2 | F23: Corporation | G23: 3 | K23: . | M23: 0 | N23: % | O23: 0
J24: NON-ANNUAL EXPENSES
B26: - CAPITAL PURCHASES - | F26: - LOAN INFORMATION - | K26: ITEM | M26: YR.( 1-15 ) | O26: AMOUNT
B28: ASSET PURCHASE # 1: | F28: LOAN # 1 : | K28: Major Repairs | M28: 10 | O28: 50000
C29: - DESCRIPTION : | D29: Equipment | F29: LOAN REQUIREMENT: | G29: =IF(D30-D17<0,0,D30-D17) -> 42000 | K29: . | M29: 0 | O29: 0
C30: - AMOUNT : | D30: 242000 | F30: INTEREST RATE : | G30: 5 | H30: % | K30: . | M30: 0 | O30: 0
C31: - % C.C.A.ELIGIBLE: | D31: 100 | E31: % | F31: TERM ( YEARS ) : | G31: 10 | K31: . | M31: 0 | O31: 0
C32: - % C.C.A.YEAR 1 : | D32: 50 | E32: % | F32: PAYMENTS / YEAR | G32: 12
C33: - C.C.A. RATE % : | D33: 20 | E33: % | F33: COMPOUNDS/YR | G33: 12 | K33: REDUCED COSTS AND ADDED RETURNS
B35: ASSET PURCHASE # 2: | F35: LOAN # 2 : | K35: CAPITAL SALES/DISPOSALS | M35: YR.( 1-15 ) | O35: AMOUNT
C36: - DESCRIPTION : | D36: Building | F36: LOAN REQUIREMENT: | G36: 688000
C37: - AMOUNT : | D37: 688000 | F37: INTEREST RATE : | G37: 5 | H37: % | K37: . | M37: 0 | O37: 0
C38: - % C.C.A.ELIGIBLE: | D38: 100 | E38: % | F38: TERM ( YEARS ) : | G38: 20 | K38: . | M38: 0 | O38: 0
C39: - % C.C.A.YEAR 1 : | D39: 50 | E39: % | F39: PAYMENTS / YEAR | G39: 12 | K39: . | M39: 0 | O39: 0
C40: - C.C.A. RATE % : | D40: 10 | E40: % | F40: COMPOUNDS/YR | G40: 12
J41: ADDED ANNUAL INCOME
B42: ASSET PURCHASE # 3: | F42: LOAN # 3 :
C43: - DESCRIPTION : | F43: LOAN REQUIREMENT: | G43: =D44 -> 0 | K43: OPERATING REVENUE | M43: INFLATION FACTOR | O43: AMOUNT
C44: - AMOUNT : | F44: INTEREST RATE : | G44: 5 | H44: %
C45: - % C.C.A.ELIGIBLE: | E45: % | F45: TERM ( YEARS ) : | G45: 7 | K45: ADDED SALES | M45: 0 | N45: % | O45: 360000
C46: - % C.C.A.YEAR 1 : | E46: % | F46: PAYMENTS / YEAR | G46: 12 | K46: . | M46: 0 | N46: % | O46: 0
C47: - C.C.A. RATE % : | E47: % | F47: COMPOUNDS/YR | G47: 12 | K47: . | M47: 0 | N47: % | O47: 0
K48: . | M48: 0 | N48: % | O48: 0
K49: . | M49: 0 | N49: % | O49: 0
K50: . | M50: 0 | N50: % | O50: 0
K51: . | M51: 0 | N51: % | O51: 0
K52: . | M52: 0 | N52: % | O52: 0
K53: . | M53: 0 | N53: % | O53: 0
K54: REDUCED COSTS | M54: INFLATION FACTOR | O54: AMOUNT
K56: . | M56: 0 | N56: % | O56: 0
K57: . | M57: 0 | N57: % | O57: 0
K58: . | M58: 0 | N58: % | O58: 0
K59: . | M59: 0 | N59: % | O59: 0
A62: End of worksheet

Sheet Reports
L2: Ministry of Agriculture, Food and Rural Affairs
G3: CASH BASIS CAPITAL INVESTMENT WORKSHEET | L3: AGRICULTURE DEVELOPMENT BRANCH
L4: BUSINESS MANAGEMENT UNIT
A6: - Basic Information - | D6: - Loan Information - | P6: =Input!F10 -> DATE: | Q6: =NOW() -> 2024-11-29T15:38:56.810
E7: LOAN #1 | I7: LOAN #2 | M7: LOAN #3
A8: Required Rate of Return (%) | C8: =Input!D16 -> 5 | D8: Loan Requirement | G8: =IF(Input!G29>0,Input!G29,0.001) -> 42000 | H8: Loan Requirement | K8: =IF(Input!G36>0,Input!G36,0.001) -> 688000 | L8: Loan Requirement | O8: =IF(Input!G43>0,Input!G43,0.001) -> 0.001
A9: Down Payment Provided | C9: =Input!D17 -> 200000 | D9: Interest Rate | G9: =Input!G30 -> 5 | H9: Interest Rate | K9: =Input!G37 -> 5 | L9: Interest Rate | O9: =Input!G44 -> 5
A10: # of Years of Projection | C10: =Input!H16 -> 15 | D10: Term (Years) | G10: =Input!G31 -> 10 | H10: Term (Years) | K10: =Input!G38 -> 20 | L10: Term (Years) | O10: =Input!G45 -> 7
A11: (Maximum 15 Years) | D11: Payments / Year | G11: =Input!G32 -> 12 | H11: Payments / Year | K11: =Input!G39 -> 12 | L11: Payments / Year | O11: =Input!G46 -> 12
A12: Total Capital Expense: | C12: =C9+G8+K8+O8 -> 930000.001 | D12: Compounding Periods / Year | G12: =Input!G33 -> 12 | H12: Compounding Periods / Year | K12: =Input!G40 -> 12 | L12: Compounding Periods / Year | O12: =Input!G47 -> 12
D13: Loan Payment | G13: =PMT(((1+(G9/(G12*100)))^(G12/G11)-1),G10*G11,-G8) -> 445.475164 | H13: Loan Payment | K13: =PMT(((1+(K9/(K12*100)))^(K12/K11)-1),K10*K11,-K8) -> 4540.495486 | L13: Loan Payment | O13: =PMT(((1+(O9/(O12*100)))^(O12/O11)-1),O10*O11,-O8) -> 1.413390907e-05
B14: Only the # of years of Projection specified | D14: Annual Loan Payments | G14: =G13*G11 -> 5345.701968 | H14: Annual Loan Payments | K14: =K13*K11 -> 54485.94583 | L14: Annual Loan Payments | O14: =O13*O11 -> 0.0001696069089
B15: above are included in Net Present
B16: Value Calculation column. | C16: Net | E16: Years> | H16: Years
C17: Present | E17: 1 | F17: 2 | G17: 3 | H17: 4 | I17: 5 | J17: 6 | K17: 7 | L17: 8 | M17: 9 | N17: 10 | O17: 11 | P17: 12 | Q17: 13 | R17: 14 | S17: 15 | U17: NPV by projection years selected
C18: Value | U18: 1 year | V18: 2 year | W18: 3 year | X18: 4 year | Y18: 5 year | Z18: 6 year | AA18: 7 year | AB18: 8 year | AC18: 9 year | AD18: 10 year | AE18: 11 year | AF18: 12 year | AG18: 13 year | AH18: 14 year | AI18: 15 year
B19: DISADVANTAGES | C19: Outst. Pr. #1> | E19: =G8 -> 42000 | F19: =IF(+E19-E23>0,+E19-E23,0) -> 38678.87455 | G19: 35187.83401 | H19: 31518.18522 | I19: 27660.79023 | J19: 23606.04359 | K19: 19343.84842 | L19: 14863.59125 | M19: =IF(+L19-L23>0,+L19-L23,0) -> 10154.11563 | N19: 5203.694288 | O19: 0 | P19: 0 | Q19: 0 | R19: 0 | S19: 0
C20: Outst. Pr. #2> | E20: =K8 -> 688000 | F20: 667447.2978 | G20: 645843.0804 | H20: 623133.5502 | I20: 599262.1573 | J20: 574169.4587 | K20: 547792.9699 | L20: 520067.01 | M20: 490922.5373 | N20: 460286.9781 | O20: 428084.0456 | P20: 394233.5499 | Q20: 358651.1985 | R20: 321248.3866 | S20: 281931.9758
C21: Outst. Pr. #3> | E21: =O8 -> 0.001 | F21: 0.001 | G21: 0.001 | H21: 0.001 | I21: 0.001 | J21: 0.001 | K21: 0.001 | L21: 0.001 | M21: 0.001 | N21: 0.001 | O21: 0.001 | P21: 0.001 | Q21: 0.001 | R21: 0.001 | S21: 0.001
B22: Added Capital Expenses
B23: Principal - Loan # 1 | C23: =IF($C$10=1,U23,IF($C$10=2,V23,IF($C$10=3,W23,IF($C$10=4,X23,IF($C$10=5,Y23,IF($C$10=6,Z23,IF($C$10=7,AA23,IF($C$10=8,AB23,IF($C$10=9,AC23,IF($C$10=10,AD23,IF($C$10=11,AE23,IF($C$10=12,AF23,IF($C$10=13,AG23,IF($C$10=14,AH23,AI23)))))))))))))) -> 31787.73428 | E23: =IF(E28>1,+$G$14-E28,0) -> 3321.125453 | F23: 3491.040534 | G23: 3669.648793 | H23: 3857.39499 | I23: 4054.746639 | J23: 4262.195172 | K23: 4480.257167 | L23: 4709.475626 | M23: 4950.421337 | N23: 5203.694288 | O23: 0 | P23: 0 | Q23: 0 | R23: 0 | S23: 0 | U23: =NPV($C$8*0.01,E23) -> 3162.976622 | V23: =NPV($C$8*0.01,E23:F23) -> 6329.453297 | W23: =NPV($C$8*0.01,E23:G23) -> 9499.433898 | X23: =NPV($C$8*0.01,E23:H23) -> 12672.9223 | Y23: =NPV($C$8*0.01,E23:I23) -> 15849.92239 | Z23: =NPV($C$8*0.01,E23:J23) -> 19030.43805 | AA23: =NPV($C$8*0.01,E23:K23) -> 22214.47318 | AB23: =NPV($C$8*0.01,E23:L23) -> 25402.03165 | AC23: =NPV($C$8*0.01,E23:M23) -> 28593.11739 | AD23: =NPV($C$8*0.01,E23:N23) -> 31787.73428 | AE23: =NPV($C$8*0.01,E23:O23) -> 31787.73428 | AF23: =NPV($C$8*0.01,E23:P23) -> 31787.73428 | AG23: =NPV($C$8*0.01,E23:Q23) -> 31787.73428 | AH23: =NPV($C$8*0.01,E23:R23) -> 31787.73428 | AI23: =NPV($C$8*0.01,E23:S23) -> 31787.73428
B24: Principal - Loan # 2 | C24: =IF($C$10=1,U24,IF($C$10=2,V24,IF($C$10=3,W24,IF($C$10=4,X24,IF($C$10=5,Y24,IF($C$10=6,Z24,IF($C$10=7,AA24,IF($C$10=8,AB24,IF($C$10=9,AC24,IF($C$10=10,AD24,IF($C$10=11,AE24,IF($C$10=12,AF24,IF($C$10=13,AG24,IF($C$10=14,AH24,AI24)))))))))))))) -> 295895.2723 | E24: =IF(E29>1,+$K$14-E29,0) -> 20552.70219 | F24: 21604.21744 | G24: 22709.5302 | H24: 23871.39287 | I24: 25092.69863 | J24: 26376.48872 | K24: 27725.95994 | L24: 29144.47267 | M24: 30635.55921 | N24: 32202.93256 | O24: 33850.49571 | P24: 35582.35131 | Q24: 37402.81194 | R24: 39316.41078 | S24: 41327.91297 | U24: 19574.00208 | V24: 39169.66416 | W24: 58787.0102 | X24: 78426.06419 | Y24: 98086.85015 | Z24: 117769.3921 | AA24: 137473.7142 | AB24: 157199.8405 | AC24: 176947.7951 | AD24: 196717.6022 | AE24: 216509.286 | AF24: 236322.8706 | AG24: 256158.3804 | AH24: 276015.8395 | AI24: 295895.2723
B25: Principal - Loan # 3 | C25: 0 | E25: =IF(E30>1,+$O$14-E30,0) -> 0 | F25: 0 | G25: 0 | H25: 0 | I25: 0 | J25: 0 | K25: 0 | L25: 0 | M25: 0 | N25: 0 | O25: 0 | P25: 0 | Q25: 0 | R25: 0 | S25: 0 | U25: 0 | V25: 0 | W25: 0 | X25: 0 | Y25: 0 | Z25: 0 | AA25: 0 | AB25: 0 | AC25: 0 | AD25: 0 | AE25: 0 | AF25: 0 | AG25: 0 | AH25: 0 | AI25: 0
B27: Added Operating Expenses
B28: Interest - Loan # 1 | C28: =IF($C$10=1,U28,IF($C$10=2,V28,IF($C$10=3,W28,IF($C$10=4,X28,IF($C$10=5,Y28,IF($C$10=6,Z28,IF($C$10=7,AA28,IF($C$10=8,AB28,IF($C$10=9,AC28,IF($C$10=10,AD28,IF($C$10=11,AE28,IF($C$10=12,AF28,IF($C$10=13,AG28,IF($C$10=14,AH28,AI28)))))))))))))) -> 9490.359329 | E28: =IF(E$17>$G$10,0,-CUMIPMT(((1+($G$9/($G$12*100)))^($G$12/$G$11)-1),$G$10*$G$11,$G$8,D17*$G$11+1,$G$11*E17,0)) -> 2024.576515 | F28: 1854.661434 | G28: 1676.053175 | H28: 1488.306978 | I28: 1290.955329 | J28: 1083.506796 | K28: 865.4448015 | L28: 636.2263419 | M28: 395.2806308 | N28: 142.0076799 | O28: 0 | P28: 0 | Q28: 0 | R28: 0 | S28: 0 | U28: 1928.16811 | V28: =NPV($C$8*0.01,E28:F28) -> 3610.400703 | W28: =NPV($C$8*0.01,E28:G28) -> 5058.238452 | X28: =NPV($C$8*0.01,E28:H28) -> 6282.672286 | Y28: =NPV($C$8*0.01,E28:I28) -> 7294.169566 | Z28: =NPV($C$8*0.01,E28:J28) -> 8102.699019 | AA28: =NPV($C$8*0.01,E28:K28) -> 8717.754482 | AB28: =NPV($C$8*0.01,E28:L28) -> 9148.377514 | AC28: =NPV($C$8*0.01,E28:M28) -> 9403.178933 | AD28: =NPV($C$8*0.01,E28:N28) -> 9490.359329 | AE28: =NPV($C$8*0.01,E28:O28) -> 9490.359329 | AF28: =NPV($C$8*0.01,E28:P28) -> 9490.359329 | AG28: =NPV($C$8*0.01,E28:Q28) -> 9490.359329 | AH28: =NPV($C$8*0.01,E28:R28) -> 9490.359329 | AI28: =NPV($C$8*0.01,E28:S28) -> 9490.359329
B29: Interest - Loan # 2 | C29: 269650.2133 | E29: =IF(E$17>$K$10,0,-CUMIPMT(((1+($K$9/($K$12*100)))^($K$12/$K$11)-1),$K$10*$K$11,$K$8,D$17*$K$11+1,$K$11*E$17,0)) -> 33933.24364 | F29: 32881.72839 | G29: 31776.41562 | H29: 30614.55296 | I29: 29393.2472 | J29: 28109.45711 | K29: 26759.98589 | L29: 25341.47316 | M29: 23850.38662 | N29: 22283.01327 | O29: 20635.45012 | P29: 18903.59452 | Q29: 17083.13389 | R29: 15169.53505 | S29: 13158.03286 | U29: 32317.3749 | V29: 62142.07185 | W29: 89591.73441 | X29: 114778.4029 | Y29: 137808.7812 | Z29: 158784.4909 | AA29: 177802.3132 | AB29: 194954.4198 | AC29: 210328.5916 | AD29: 224008.4288 | AE29: 236073.5491 | AF29: 246599.7779 | AG29: 255659.3285 | AH29: 263320.9745 | AI29: 269650.2133
B30: Interest - Loan # 3 | C30: 0.0001627864642 | E30: =IF(E$17>$O$10,0,-CUMIPMT(((1+($O$9/($O$12*100)))^($O$12/$O$11)-1),$O$10*$O$11,$O$8,D$17*$O$11+1,$O$11*E$17,0)) -> 4.722057972e-05 | F30: 4.095906285e-05 | G30: 3.437719488e-05 | H30: 2.745858607e-05 | I30: 2.018600809e-05 | J30: 1.254135123e-05 | K30: 4.505579205e-06 | L30: 0 | M30: 0 | N30: 0 | O30: 0 | P30: 0 | Q30: 0 | R30: 0 | S30: 0 | U30: 4.497198068e-05 | V30: 8.21230581e-05 | W30: 0.0001118193716 | X30: 0.0001344096183 | Y30: 0.0001502258838 | Z30: 0.0001595844332 | AA30: 0.0001627864642 | AB30: 0.0001627864642 | AC30: 0.0001627864642 | AD30: 0.0001627864642 | AE30: 0.0001627864642 | AF30: 0.0001627864642 | AG30: 0.0001627864642 | AH30: 0.0001627864642 | AI30: 0.0001627864642
D31: Inflation
B32: =Input!K5 -> Feed | C32: =IF($C$10=1,U32,IF($C$10=2,V32,IF($C$10=3,W32,IF($C$10=4,X32,IF($C$10=5,Y32,IF($C$10=6,Z32,IF($C$10=7,AA32,IF($C$10=8,AB32,IF($C$10=9,AC32,IF($C$10=10,AD32,IF($C$10=11,AE32,IF($C$10=12,AF32,IF($C$10=13,AG32,IF($C$10=14,AH32,AI32)))))))))))))) -> 1660745.286 | D32: =Input!M5 -> 0 | E32: =Input!O5 -> 160000 | F32: =E32*(1+$D32*0.01) -> 160000 | G32: 160000 | H32: 160000 | I32: 160000 | J32: 160000 | K32: 160000 | L32: 160000 | M32: 160000 | N32: 160000 | O32: 160000 | P32: 160000 | Q32: 160000 | R32: 160000 | S32: 160000 | U32: 152380.9524 | V32: =NPV($C$8*0.01,E32:F32) -> 297505.6689 | W32: =NPV($C$8*0.01,E32:G32) -> 435719.6847 | X32: =NPV($C$8*0.01,E32:H32) -> 567352.0807 | Y32: =NPV($C$8*0.01,E32:I32) -> 692716.2673 | Z32: =NPV($C$8*0.01,E32:J32) -> 812110.7308 | AA32: =NPV($C$8*0.01,E32:K32) -> 925819.7436 | AB32: =NPV($C$8*0.01,E32:L32) -> 1034114.042 | AC32: =NPV($C$8*0.01,E32:M32) -> 1137251.468 | AD32: =NPV($C$8*0.01,E32:N32) -> 1235477.589 | AE32: =NPV($C$8*0.01,E32:O32) -> 1329026.275 | AF32: =NPV($C$8*0.01,E32:P32) -> 1418120.262 | AG32: =NPV($C$8*0.01,E32:Q32) -> 1502971.678 | AH32: =NPV($C$8*0.01,E32:R32) -> 1583782.55 | AI32: =NPV($C$8*0.01,E32:S32) -> 1660745.286
B33: =Input!K6 -> Health & Breeding | C33: 10578.42952 | D33: =Input!M6 -> 2 | E33: =Input!O6 -> 900 | F33: 918 | G33: 936.36 | H33: 955.0872 | I33: 974.188944 | J33: 993.6727229 | K33: 1013.546177 | L33: 1033.817101 | M33: 1054.493443 | N33: 1075.583312 | O33: 1097.094978 | P33: 1119.036878 | Q33: 1141.417615 | R33: 1164.245967 | S33: 1187.530887 | U33: 857.1428571 | V33: 1689.795918 | W33: 2498.658892 | X33: 3284.411495 | Y33: 4047.714024 | Z33: 4789.207909 | AA33: 5509.516254 | AB33: 6209.244361 | AC33: 6888.980237 | AD33: 7549.295087 | AE33: 8190.743799 | AF33: 8813.865405 | AG33: 9419.183536 | AH33: 10007.20686 | AI33: 10578.42952
B34: =Input!K7 -> Marketing | C34: 109545.5146 | D34: =Input!M7 -> 2 | E34: =Input!O7 -> 9320 | F34: 9506.4 | G34: 9696.528 | H34: 9890.45856 | I34: 10088.26773 | J34: 10290.03309 | K34: 10495.83375 | L34: 10705.75042 | M34: 10919.86543 | N34: 11138.26274 | O34: 11361.02799 | P34: 11588.24855 | Q34: 11820.01353 | R34: 12056.4138 | S34: 12297.54207 | U34: 8876.190476 | V34: 17498.77551 | W34: 25875.00097 | X34: 34011.90571 | Y34: 41916.32745 | Z34: 49594.90857 | AA34: 57054.10166 | AB34: 64300.17494 | AC34: 71339.21756 | AD34: 78177.14468 | AE34: 84819.70245 | AF34: 91272.47286 | AG34: 97540.8784 | AH34: 103630.1866 | AI34: 109545.5146
B35: =Input!K8 -> Hydro Telephone | C35: 44354.61308 | D35: =Input!M8 -> 3 | E35: =Input!O8 -> 3540 | F35: 3646.2 | G35: 3755.586 | H35: 3868.25358 | I35: 3984.301187 | J35: 4103.830223 | K35: 4226.94513 | L35: 4353.753484 | M35: 4484.366088 | N35: 4618.897071 | O35: 4757.463983 | P35: 4900.187902 | Q35: 5047.193539 | R35: 5198.609346 | S35: 5354.567626 | U35: 3371.428571 | V35: 6678.639456 | W35: 9922.855847 | X35: 13105.27764 | Y35: 16227.08188 | Z35: 19289.42317 | AA35: 22293.43416 | AB35: 25240.22589 | AC35: 28130.88825 | AD35: 30966.49038 | AE35: 33748.08104 | AF35: 36476.68902 | AG35: 39153.32352 | AH35: 41778.9745 | AI35: 44354.61308
B36: =Input!K9 -> Repairs and maintenance | C36: 53375.89032 | D36: =Input!M9 -> 3 | E36: =Input!O9 -> 4260 | F36: 4387.8 | G36: 4519.434 | H36: 4655.01702 | I36: 4794.667531 | J36: 4938.507557 | K36: 5086.662783 | L36: 5239.262667 | M36: 5396.440547 | N36: 5558.333763 | O36: 5725.083776 | P36: 5896.836289 | Q36: 6073.741378 | R36: 6255.953619 | S36: 6443.632228 | U36: 4057.142857 | V36: 8037.006803 | W36: 11941.06382 | X36: 15770.75784 | Y36: 19527.50531 | Z36: 23212.69568 | AA36: 26827.69196 | AB36: 30373.83116 | AC36: 33852.42485 | AD36: 37264.75961 | AE36: 40612.09753 | AF36: 43895.67662 | AG36: 47116.71135 | AH36: 50276.39304 | AI36: 53375.89032
B37: =Input!K10 -> Labour | C37: 94030.48466 | D37: =Input!M10 -> 2 | E37: =Input!O10 -> 8000 | F37: 8160 | G37: 8323.2 | H37: 8489.664 | I37: 8659.45728 | J37: 8832.646426 | K37: 9009.299354 | L37: 9189.485341 | M37: 9373.275048 | N37: 9560.740549 | O37: 9751.95536 | P37: 9946.994467 | Q37: 10145.93436 | R37: 10348.85304 | S37: 10555.8301 | U37: 7619.047619 | V37: 15020.40816 | W37: 22210.30126 | X37: 29194.76885 | Y37: 35979.68021 | Z37: 42570.73697 | AA37: 48973.47782 | AB37: 55193.28321 | AC37: 61235.37988 | AD37: 67104.84522 | AE37: 72806.61155 | AF37: 78345.47026 | AG37: 83726.07588 | AH37: 88952.9499 | AI37: 94030.48466
B38: =Input!K11 -> Operating interest | C38: 19215.49247 | D38: =Input!M11 -> 0.1 | E38: =Input!O11 -> 1840 | F38: 1841.84 | G38: 1843.68184 | H38: 1845.525522 | I38: 1847.371047 | J38: 1849.218418 | K38: 1851.067637 | L38: 1852.918704 | M38: 1854.771623 | N38: 1856.626395 | O38: 1858.483021 | P38: 1860.341504 | Q38: 1862.201846 | R38: 1864.064048 | S38: 1865.928112 | U38: 1752.380952 | V38: 3422.984127 | W38: 5015.62582 | X38: 6533.944234 | Y38: 7981.407789 | Z38: 9361.323045 | AA38: 10676.84225 | AB38: 11930.97057 | AC38: 13126.57289 | AD38: 14266.38045 | AE38: 15352.99698 | AF38: 16388.90474 | AG38: 17376.47013 | AH38: 18317.94915 | AI38: 19215.49247
B39: =Input!K12 -> Livestock purchases | C39: 1453152.125 | D39: =Input!M12 -> 0 | E39: =Input!O12 -> 140000 | F39: 140000 | G39: 140000 | H39: 140000 | I39: 140000 | J39: 140000 | K39: 140000 | L39: 140000 | M39: 140000 | N39: 140000 | O39: 140000 | P39: 140000 | Q39: 140000 | R39: 140000 | S39: 140000 | U39: 133333.3333 | V39: 260317.4603 | W39: 381254.7241 | X39: 496433.0706 | Y39: 606126.7339 | Z39: 710596.8894 | AA39: 810092.2756 | AB39: 904849.7863 | AC39: 995095.0346 | AD39: 1081042.89 | AE39: 1162897.991 | AF39: 1240855.229 | AG39: 1315100.218 | AH39: 1385809.732 | AI39: 1453152.125
B40: =Input!K13 -> Taxes & insurance | C40: 33380.82206 | D40: =Input!M13 -> 2 | E40: =Input!O13 -> 2840 | F40: 2896.8 | G40: 2954.736 | H40: 3013.83072 | I40: 3074.107334 | J40: 3135.589481 | K40: 3198.301271 | L40: 3262.267296 | M40: 3327.512642 | N40: 3394.062895 | O40: 3461.944153 | P40: 3531.183036 | Q40: 3601.806697 | R40: 3673.84283 | S40: 3747.319687 | U40: 2704.761905 | V40: 5332.244898 | W40: 7884.656948 | X40: 10364.14294 | Y40: 12772.78648 | Z40: 15112.61162 | AA40: 17385.58463 | AB40: 19593.61554 | AC40: 21738.55986 | AD40: 23822.22005 | AE40: 25846.3471 | AF40: 27812.64194 | AG40: 29722.75694 | AH40: 31578.29721 | AI40: 33380.82206
B41: =Input!K14 -> . | C41: 0 | D41: =Input!M14 -> 0 | E41: =Input!O14 -> 0 | F41: 0 | G41: 0 | H41: 0 | I41: 0 | J41: 0 | K41: 0 | L41: 0 | M41: 0 | N41: 0 | O41: 0 | P41: 0 | Q41: 0 | R41: 0 | S41: 0 | U41: 0 | V41: 0 | W41: 0 | X41: 0 | Y41: 0 | Z41: 0 | AA41: 0 | AB41: 0 | AC41: 0 | AD41: 0 | AE41: 0 | AF41: 0 | AG41: 0 | AH41: 0 | AI41: 0
B42: =Input!K15 -> . | C42: 0 | D42: =Input!M15 -> 0 | E42: =Input!O15 -> 0 | F42: 0 | G42: 0 | H42: 0 | I42: 0 | J42: 0 | K42: 0 | L42: 0 | M42: 0 | N42: 0 | O42: 0 | P42: 0 | Q42: 0 | R42: 0 | S42: 0 | U42: 0 | V42: 0 | W42: 0 | X42: 0 | Y42: 0 | Z42: 0 | AA42: 0 | AB42: 0 | AC42: 0 | AD42: 0 | AE42: 0 | AF42: 0 | AG42: 0 | AH42: 0 | AI42: 0
B43: =Input!K16 -> . | C43: 0 | D43: =Input!M16 -> 0 | E43: =Input!O16 -> 0 | F43: 0 | G43: 0 | H43: 0 | I43: 0 | J43: 0 | K43: 0 | L43: 0 | M43: 0 | N43: 0 | O43: 0 | P43: 0 | Q43: 0 | R43: 0 | S43: 0 | U43: 0 | V43: 0 | W43: 0 | X43: 0 | Y43: 0 | Z43: 0 | AA43: 0 | AB43: 0 | AC43: 0 | AD43: 0 | AE43: 0 | AF43: 0 | AG43: 0 | AH43: 0 | AI43: 0
B44: =Input!K17 -> . | C44: 0 | D44: =Input!M17 -> 0 | E44: =Input!O17 -> 0 | F44: 0 | G44: 0 | H44: 0 | I44: 0 | J44: 0 | K44: 0 | L44: 0 | M44: 0 | N44: 0 | O44: 0 | P44: 0 | Q44: 0 | R44: 0 | S44: 0 | U44: 0 | V44: 0 | W44: 0 | X44: 0 | Y44: 0 | Z44: 0 | AA44: 0 | AB44: 0 | AC44: 0 | AD44: 0 | AE44: 0 | AF44: 0 | AG44: 0 | AH44: 0 | AI44: 0
B45: =Input!J24 -> NON-ANNUAL EXPENSES | C45: 30695.66268 | D45: NA | E45: =IF(Input!$M$28=1,Input!$O$28,0)+IF(Input!$M$29=1,Input!$O$29,0)+IF(Input!$M$30=1,Input!$O$30,0)+IF(Input!M31=1,Input!$O$31,0) -> 0 | F45: =IF(Input!$M$28=2,Input!$O$28,0)+IF(Input!$M$29=2,Input!$O$29,0)+IF(Input!$M$30=2,Input!$O$30,0)+IF(Input!$M$31=2,Input!$O$31,0) -> 0 | G45: =IF(Input!$M$28=3,Input!$O$28,0)+IF(Input!$M$29=3,Input!$O$29,0)+IF(Input!$M$30=3,Input!$O$30,0)+IF(Input!$M$31=3,Input!$O$31,0) -> 0 | H45: =IF(Input!$M$28=4,Input!$O$28,0)+IF(Input!$M$29=4,Input!$O$29,0)+IF(Input!$M$30=4,Input!$O$30,0)+IF(Input!$M$31=4,Input!$O$31,0) -> 0 | I45: =IF(Input!$M$28=5,Input!$O$28,0)+IF(Input!$M$29=5,Input!$O$29,0)+IF(Input!$M$30=5,Input!$O$30,0)+IF(Input!$M$31=5,Input!$O$31,0) -> 0 | J45: =IF(Input!$M$28=6,Input!$O$28,0)+IF(Input!$M$29=6,Input!$O$29,0)+IF(Input!$M$30=6,Input!$O$30,0)+IF(Input!$M$31=6,Input!$O$31,0) -> 0 | K45: =IF(Input!$M$28=7,Input!$O$28,0)+IF(Input!$M$29=7,Input!$O$29,0)+IF(Input!$M$30=7,Input!$O$30,0)+IF(Input!$M$31=7,Input!$O$31,0) -> 0 | L45: =IF(Input!$M$28=8,Input!$O$28,0)+IF(Input!$M$29=8,Input!$O$29,0)+IF(Input!$M$30=8,Input!$O$30,0)+IF(Input!$M$31=8,Input!$O$31,0) -> 0 | M45: =IF(Input!$M$28=9,Input!$O$28,0)+IF(Input!$M$29=9,Input!$O$29,0)+IF(Input!$M$30=9,Input!$O$30,0)+IF(Input!$M$31=9,Input!$O$31,0) -> 0 | N45: =IF(Input!$M$28=10,Input!$O$28,0)+IF(Input!$M$29=10,Input!$O$29,0)+IF(Input!$M$30=10,Input!$O$30,0)+IF(Input!$M$31=10,Input!$O$31,0) -> 50000 | O45: =IF(Input!$M$28=11,Input!$O$28,0)+IF(Input!$M$29=11,Input!$O$29,0)+IF(Input!$M$30=11,Input!$O$30,0)+IF(Input!$M$31=11,Input!$O$31,0) -> 0 | P45: =IF(Input!$M$28=12,Input!$O$28,0)+IF(Input!$M$29=12,Input!$O$29,0)+IF(Input!$M$30=12,Input!$O$30,0)+IF(Input!$M$31=12,Input!$O$31,0) -> 0 | Q45: =IF(Input!$M$28=13,Input!$O$28,0)+IF(Input!$M$29=13,Input!$O$29,0)+IF(Input!$M$30=13,Input!$O$30,0)+IF(Input!$M$31=13,Input!$O$31,0) -> 0 | R45: =IF(Input!$M$28=14,Input!$O$28,0)+IF(Input!$M$29=14,Input!$O$29,0)+IF(Input!$M$30=14,Input!$O$30,0)+IF(Input!$M$31=14,Input!$O$31,0) -> 0 | S45: =IF(Input!$M$28=15,Input!$O$28,0)+IF(Input!$M$29=15,Input!$O$29,0)+IF(Input!$M$30=15,Input!$O$30,0)+IF(Input!$M$31=15,Input!$O$31,0) -> 0 | U45: 0 | V45: 0 | W45: 0 | X45: 0 | Y45: 0 | Z45: 0 | AA45: 0 | AB45: 0 | AC45: 0 | AD45: 30695.66268 | AE45: 30695.66268 | AF45: 30695.66268 | AG45: 30695.66268 | AH45: 30695.66268 | AI45: 30695.66268
A46: Total Added Expenses: | C46: =SUM(C23:C45) -> 4115897.9 | E46: =SUM(E23:E45) -> 390531.6478 | F46: 391188.6878 | G46: 391861.1737 | H46: 392549.4844 | I46: 393254.0089 | J46: 393975.1457 | K46: 394713.3039 | L46: 395468.9028 | M46: 396242.3726 | N46: 447034.1545 | O46: 392498.9991 | P46: 393328.7745 | Q46: 394178.2548 | R46: 395047.9285 | S46: 395938.2965 | U46: 371934.9027 | V46: 726754.5742 | W46: 1065258.989 | X46: 1388210.422 | Y46: 1696335.228 | Z46: 1990325.547 | AA46: 2270840.923 | AB46: 2538509.843 | AC46: 2793931.21 | AD46: 3068371.402 | AE46: 3297857.438 | AF46: 3516877.617 | AG46: 3725918.761 | AH46: 3925444.81 | AI46: 4115897.9
B48: Reduced Income
B49: Down Pynt Interest Lost | C49: =IF($C$10=1,U49,IF($C$10=2,V49,IF($C$10=3,W49,IF($C$10=4,X49,IF($C$10=5,Y49,IF($C$10=6,Z49,IF($C$10=7,AA49,IF($C$10=8,AB49,IF($C$10=9,AC49,IF($C$10=10,AD49,IF($C$10=11,AE49,IF($C$10=12,AF49,IF($C$10=13,AG49,IF($C$10=14,AH49,AI49)))))))))))))) -> 103796.5804 | D49: NA | E49: =$C$9*$C$8*0.01 -> 10000 | F49: 10000 | G49: 10000 | H49: 10000 | I49: 10000 | J49: 10000 | K49: 10000 | L49: 10000 | M49: 10000 | N49: 10000 | O49: 10000 | P49: 10000 | Q49: 10000 | R49: 10000 | S49: 10000 | U49: 9523.809524 | V49: =NPV($C$8*0.01,E49:F49) -> 18594.10431 | W49: =NPV($C$8*0.01,E49:G49) -> 27232.48029 | X49: =NPV($C$8*0.01,E49:H49) -> 35459.50504 | Y49: =NPV($C$8*0.01,E49:I49) -> 43294.76671 | Z49: =NPV($C$8*0.01,E49:J49) -> 50756.92067 | AA49: =NPV($C$8*0.01,E49:K49) -> 57863.73397 | AB49: =NPV($C$8*0.01,E49:L49) -> 64632.12759 | AC49: =NPV($C$8*0.01,E49:M49) -> 71078.21676 | AD49: =NPV($C$8*0.01,E49:N49) -> 77217.34929 | AE49: =NPV($C$8*0.01,E49:O49) -> 83064.14218 | AF49: =NPV($C$8*0.01,E49:P49) -> 88632.51636 | AG49: =NPV($C$8*0.01,E49:Q49) -> 93935.72987 | AH49: =NPV($C$8*0.01,E49:R49) -> 98986.4094 | AI49: =NPV($C$8*0.01,E49:S49) -> 103796.5804
B50: =Input!K21 -> . | C50: 0 | D50: =Input!M21 -> 0 | E50: =Input!O21 -> 0 | F50: =E50*(1+$D50*0.01) -> 0 | G50: 0 | H50: 0 | I50: 0 | J50: 0 | K50: 0 | L50: 0 | M50: 0 | N50: 0 | O50: 0 | P50: 0 | Q50: 0 | R50: 0 | S50: 0 | U50: 0 | V50: 0 | W50: 0 | X50: 0 | Y50: 0 | Z50: 0 | AA50: 0 | AB50: 0 | AC50: 0 | AD50: 0 | AE50: 0 | AF50: 0 | AG50: 0 | AH50: 0 | AI50: 0
B51: =Input!K22 -> . | C51: 0 | D51: =Input!M22 -> 0 | E51: =Input!O22 -> 0 | F51: 0 | G51: 0 | H51: 0 | I51: 0 | J51: 0 | K51: 0 | L51: 0 | M51: 0 | N51: 0 | O51: 0 | P51: 0 | Q51: 0 | R51: 0 | S51: 0 | U51: 0 | V51: 0 | W51: 0 | X51: 0 | Y51: 0 | Z51: 0 | AA51: 0 | AB51: 0 | AC51: 0 | AD51: 0 | AE51: 0 | AF51: 0 | AG51: 0 | AH51: 0 | AI51: 0
B52: =Input!K23 -> . | C52: 0 | D52: =Input!M23 -> 0 | E52: =Input!O23 -> 0 | F52: 0 | G52: 0 | H52: 0 | I52: 0 | J52: 0 | K52: 0 | L52: 0 | M52: 0 | N52: 0 | O52: 0 | P52: 0 | Q52: 0 | R52: 0 | S52: 0 | U52: 0 | V52: 0 | W52: 0 | X52: 0 | Y52: 0 | Z52: 0 | AA52: 0 | AB52: 0 | AC52: 0 | AD52: 0 | AE52: 0 | AF52: 0 | AG52: 0 | AH52: 0 | AI52: 0
A53: Total Reduced Income | C53: =SUM(C49:C52) -> 103796.5804 | E53: =SUM(E49:E52) -> 10000 | F53: 10000 | G53: 10000 | H53: 10000 | I53: 10000 | J53: 10000 | K53: 10000 | L53: 10000 | M53: 10000 | N53: 10000 | O53: 10000 | P53: 10000 | Q53: 10000 | R53: 10000 | S53: 10000 | U53: 9523.809524 | V53: 18594.10431 | W53: 27232.48029 | X53: 35459.50504 | Y53: 43294.76671 | Z53: 50756.92067 | AA53: 57863.73397 | AB53: 64632.12759 | AC53: 71078.21676 | AD53: 77217.34929 | AE53: 83064.14218 | AF53: 88632.51636 | AG53: 93935.72987 | AH53: 98986.4094 | AI53: 103796.5804
A55: TOTAL DISADVANTAGES | C55: =SUM(C46,C53) -> 4219694.481 | E55: =SUM(E46,E53) -> 400531.6478 | F55: 401188.6878 | G55: 401861.1737 | H55: 402549.4844 | I55: 403254.0089 | J55: 403975.1457 | K55: 404713.3039 | L55: 405468.9028 | M55: 406242.3726 | N55: 457034.1545 | O55: 402498.9991 | P55: 403328.7745 | Q55: 404178.2548 | R55: 405047.9285 | S55: 405938.2965 | U55: 381458.7122 | V55: =NPV($C$8*0.01,E55:F55) -> 745348.6785 | W55: =NPV($C$8*0.01,E55:G55) -> 1092491.47 | X55: =NPV($C$8*0.01,E55:H55) -> 1423669.927 | Y55: =NPV($C$8*0.01,E55:I55) -> 1739629.994 | Z55: =NPV($C$8*0.01,E55:J55) -> 2041082.468 | AA55: =NPV($C$8*0.01,E55:K55) -> 2328704.657 | AB55: =NPV($C$8*0.01,E55:L55) -> 2603141.971 | AC55: =NPV($C$8*0.01,E55:M55) -> 2865009.426 | AD55: =NPV($C$8*0.01,E55:N55) -> 3145588.751 | AE55: =NPV($C$8*0.01,E55:O55) -> 3380921.58 | AF55: =NPV($C$8*0.01,E55:P55) -> 3605510.133 | AG55: =NPV($C$8*0.01,E55:Q55) -> 3819854.491 | AH55: =NPV($C$8*0.01,E55:R55) -> 4024431.219 | AI55: =NPV($C$8*0.01,E55:S55) -> 4219694.481
A59: ADVANTAGES | E59: Years> | H59: Years | S59: PAGE 2
A60: Added Income | E60: 1 | F60: 2 | G60: 3 | H60: 4 | I60: 5 | J60: 6 | K60: 7 | L60: 8 | M60: 9 | N60: 10 | O60: 11 | P60: 12 | Q60: 13 | R60: 14 | S60: 15
A61: Capital Sales/Disposals
B62: =Input!K37 -> . | C62: =IF($C$10=1,U62,IF($C$10=2,V62,IF($C$10=3,W62,IF($C$10=4,X62,IF($C$10=5,Y62,IF($C$10=6,Z62,IF($C$10=7,AA62,IF($C$10=8,AB62,IF($C$10=9,AC62,IF($C$10=10,AD62,IF($C$10=11,AE62,IF($C$10=12,AF62,IF($C$10=13,AG62,IF($C$10=14,AH62,AI62)))))))))))))) -> 0 | D62: NA | E62: =IF(Input!$M$37=1,Input!$O$37,0) -> 0 | F62: =IF(Input!$M$37=2,Input!$O$37,0) -> 0 | G62: =IF(Input!$M$37=3,Input!$O$37,0) -> 0 | H62: =IF(Input!$M$37=4,Input!$O$37,0) -> 0 | I62: =IF(Input!$M$37=5,Input!$O$37,0) -> 0 | J62: =IF(Input!$M$37=6,Input!$O$37,0) -> 0 | K62: =IF(Input!$M$37=7,Input!$O$37,0) -> 0 | L62: =IF(Input!$M$37=8,Input!$O$37,0) -> 0 | M62: =IF(Input!$M$37=9,Input!$O$37,0) -> 0 | N62: =IF(Input!$M$37=10,Input!$O$37,0) -> 0 | O62: =IF(Input!$M$37=11,Input!$O$37,0) -> 0 | P62: =IF(Input!$M$37=12,Input!$O$37,0) -> 0 | Q62: =IF(Input!$M$37=13,Input!$O$37,0) -> 0 | R62: =IF(Input!$M$37=14,Input!$O$37,0) -> 0 | S62: =IF(Input!$M$37=15,Input!$O$37,0) -> 0 | U62: 0 | V62: =NPV($C$8*0.01,E62:F62) -> 0 | W62: =NPV($C$8*0.01,E62:G62) -> 0 | X62: =NPV($C$8*0.01,E62:H62) -> 0 | Y62: =NPV($C$8*0.01,E62:I62) -> 0 | Z62: =NPV($C$8*0.01,E62:J62) -> 0 | AA62: =NPV($C$8*0.01,E62:K62) -> 0 | AB62: =NPV($C$8*0.01,E62:L62) -> 0 | AC62: =NPV($C$8*0.01,E62:M62) -> 0 | AD62: =NPV($C$8*0.01,E62:N62) -> 0 | AE62: =NPV($C$8*0.01,E62:O62) -> 0 | AF62: =NPV($C$8*0.01,E62:P62) -> 0 | AG62: =NPV($C$8*0.01,E62:Q62) -> 0 | AH62: =NPV($C$8*0.01,E62:R62) -> 0 | AI62: =NPV($C$8*0.01,E62:S62) -> 0
B63: =Input!K38 -> . | C63: 0 | D63: NA | E63: =IF(Input!$M$38=1,Input!$O$38,0) -> 0 | F63: =IF(Input!$M$38=2,Input!$O$38,0) -> 0 | G63: =IF(Input!$M$38=3,Input!$O$38,0) -> 0 | H63: =IF(Input!$M$38=4,Input!$O$38,0) -> 0 | I63: =IF(Input!$M$38=5,Input!$O$38,0) -> 0 | J63: =IF(Input!$M$38=6,Input!$O$38,0) -> 0 | K63: =IF(Input!$M$38=7,Input!$O$38,0) -> 0 | L63: =IF(Input!$M$38=8,Input!$O$38,0) -> 0 | M63: =IF(Input!$M$38=9,Input!$O$38,0) -> 0 | N63: =IF(Input!$M$38=10,Input!$O$38,0) -> 0 | O63: =IF(Input!$M$38=11,Input!$O$38,0) -> 0 | P63: =IF(Input!$M$38=12,Input!$O$38,0) -> 0 | Q63: =IF(Input!$M$38=13,Input!$O$38,0) -> 0 | R63: =IF(Input!$M$38=14,Input!$O$38,0) -> 0 | S63: =IF(Input!$M$38=15,Input!$O$38,0) -> 0 | U63: 0 | V63: 0 | W63: 0 | X63: 0 | Y63: 0 | Z63: 0 | AA63: 0 | AB63: 0 | AC63: 0 | AD63: 0 | AE63: 0 | AF63: 0 | AG63: 0 | AH63: 0 | AI63: 0
B64: =Input!K39 -> . | C64: 0 | D64: NA | E64: =IF(Input!$M$39=1,Input!$O$39,0) -> 0 | F64: =IF(Input!$M$39=2,Input!$O$39,0) -> 0 | G64: =IF(Input!$M$39=3,Input!$O$39,0) -> 0 | H64: =IF(Input!$M$39=4,Input!$O$39,0) -> 0 | I64: =IF(Input!$M$39=5,Input!$O$39,0) -> 0 | J64: =IF(Input!$M$39=6,Input!$O$39,0) -> 0 | K64: =IF(Input!$M$39=7,Input!$O$39,0) -> 0 | L64: =IF(Input!$M$39=8,Input!$O$39,0) -> 0 | M64: =IF(Input!$M$39=9,Input!$O$39,0) -> 0 | N64: =IF(Input!$M$39=10,Input!$O$39,0) -> 0 | O64: =IF(Input!$M$39=11,Input!$O$39,0) -> 0 | P64: =IF(Input!$M$39=12,Input!$O$39,0) -> 0 | Q64: =IF(Input!$M$39=13,Input!$O$39,0) -> 0 | R64: =IF(Input!$M$39=14,Input!$O$39,0) -> 0 | S64: =IF(Input!$M$39=15,Input!$O$39,0) -> 0 | U64: 0 | V64: 0 | W64: 0 | X64: 0 | Y64: 0 | Z64: 0 | AA64: 0 | AB64: 0 | AC64: 0 | AD64: 0 | AE64: 0 | AF64: 0 | AG64: 0 | AH64: 0 | AI64: 0
A66: Operating Revenue | D66: Inflation
B67: =Input!K45 -> ADDED SALES | C67: =IF($C$10=1,U67,IF($C$10=2,V67,IF($C$10=3,W67,IF($C$10=4,X67,IF($C$10=5,Y67,IF($C$10=6,Z67,IF($C$10=7,AA67,IF($C$10=8,AB67,IF($C$10=9,AC67,IF($C$10=10,AD67,IF($C$10=11,AE67,IF($C$10=12,AF67,IF($C$10=13,AG67,IF($C$10=14,AH67,AI67)))))))))))))) -> 3736676.894 | D67: =Input!M45 -> 0 | E67: =Input!O45 -> 360000 | F67: =E67*(1+$D67*0.01) -> 360000 | G67: 360000 | H67: 360000 | I67: 360000 | J67: 360000 | K67: 360000 | L67: 360000 | M67: 360000 | N67: 360000 | O67: 360000 | P67: 360000 | Q67: 360000 | R67: 360000 | S67: 360000 | U67: 342857.1429 | V67: =NPV($C$8*0.01,E67:F67) -> 669387.7551 | W67: =NPV($C$8*0.01,E67:G67) -> 980369.2906 | X67: =NPV($C$8*0.01,E67:H67) -> 1276542.181 | Y67: =NPV($C$8*0.01,E67:I67) -> 1558611.601 | Z67: =NPV($C$8*0.01,E67:J67) -> 1827249.144 | AA67: =NPV($C$8*0.01,E67:K67) -> 2083094.423 | AB67: =NPV($C$8*0.01,E67:L67) -> 2326756.593 | AC67: =NPV($C$8*0.01,E67:M67) -> 2558815.803 | AD67: =NPV($C$8*0.01,E67:N67) -> 2779824.575 | AE67: =NPV($C$8*0.01,E67:O67) -> 2990309.119 | AF67: =NPV($C$8*0.01,E67:P67) -> 3190770.589 | AG67: =NPV($C$8*0.01,E67:Q67) -> 3381686.275 | AH67: =NPV($C$8*0.01,E67:R67) -> 3563510.738 | AI67: =NPV($C$8*0.01,E67:S67) -> 3736676.894
B68: =Input!K46 -> . | C68: 0 | D68: =Input!M46 -> 0 | E68: =Input!O46 -> 0 | F68: =E68*(1+$D68*0.01) -> 0 | G68: 0 | H68: 0 | I68: 0 | J68: 0 | K68: 0 | L68: 0 | M68: 0 | N68: 0 | O68: 0 | P68: 0 | Q68: 0 | R68: 0 | S68: 0 | U68: 0 | V68: 0 | W68: 0 | X68: 0 | Y68: 0 | Z68: 0 | AA68: 0 | AB68: 0 | AC68: 0 | AD68: 0 | AE68: 0 | AF68: 0 | AG68: 0 | AH68: 0 | AI68: 0
B69: =Input!K47 -> . | C69: 0 | D69: =Input!M47 -> 0 | E69: =Input!O47 -> 0 | F69: =E69*(1+$D69*0.01) -> 0 | G69: =F69*(1+$D69*0.01) -> 0 | H69: 0 | I69: 0 | J69: 0 | K69: 0 | L69: 0 | M69: 0 | N69: 0 | O69: 0 | P69: 0 | Q69: 0 | R69: 0 | S69: 0 | U69: 0 | V69: 0 | W69: 0 | X69: 0 | Y69: 0 | Z69: 0 | AA69: 0 | AB69: 0 | AC69: 0 | AD69: 0 | AE69: 0 | AF69: 0 | AG69: 0 | AH69: 0 | AI69: 0
B70: =Input!K48 -> . | C70: 0 | D70: =Input!M48 -> 0 | E70: =Input!O48 -> 0 | F70: 0 | G70: 0 | H70: 0 | I70: 0 | J70: 0 | K70: 0 | L70: 0 | M70: 0 | N70: 0 | O70: 0 | P70: 0 | Q70: 0 | R70: 0 | S70: 0 | U70: 0 | V70: 0 | W70: 0 | X70: 0 | Y70: 0 | Z70: 0 | AA70: 0 | AB70: 0 | AC70: 0 | AD70: 0 | AE70: 0 | AF70: 0 | AG70: 0 | AH70: 0 | AI70: 0
B71: =Input!K49 -> . | C71: 0 | D71: =Input!M49 -> 0 | E71: =Input!O49 -> 0 | F71: 0 | G71: 0 | H71: 0 | I71: 0 | J71: 0 | K71: 0 | L71: 0 | M71: 0 | N71: 0 | O71: 0 | P71: 0 | Q71: 0 | R71: 0 | S71: 0 | U71: 0 | V71: 0 | W71: 0 | X71: 0 | Y71: 0 | Z71: 0 | AA71: 0 | AB71: 0 | AC71: 0 | AD71: 0 | AE71: 0 | AF71: 0 | AG71: 0 | AH71: 0 | AI71: 0
B72: =Input!K50 -> . | C72: 0 | D72: =Input!M50 -> 0 | E72: =Input!O50 -> 0 | F72: 0 | G72: 0 | H72: 0 | I72: 0 | J72: 0 | K72: 0 | L72: 0 | M72: 0 | N72: 0 | O72: 0 | P72: 0 | Q72: 0 | R72: 0 | S72: 0 | U72: 0 | V72: 0 | W72: 0 | X72: 0 | Y72: 0 | Z72: 0 | AA72: 0 | AB72: 0 | AC72: 0 | AD72: 0 | AE72: 0 | AF72: 0 | AG72: 0 | AH72: 0 | AI72: 0
B73: =Input!K51 -> . | C73: 0 | D73: =Input!M51 -> 0 | E73: =Input!O51 -> 0 | F73: 0 | G73: 0 | H73: 0 | I73: 0 | J73: 0 | K73: 0 | L73: 0 | M73: 0 | N73: 0 | O73: 0 | P73: 0 | Q73: 0 | R73: 0 | S73: 0 | U73: 0 | V73: 0 | W73: 0 | X73: 0 | Y73: 0 | Z73: 0 | AA73: 0 | AB73: 0 | AC73: 0 | AD73: 0 | AE73: 0 | AF73: 0 | AG73: 0 | AH73: 0 | AI73: 0
B74: =Input!K52 -> . | C74: 0 | D74: =Input!M52 -> 0 | E74: =Input!O52 -> 0 | F74: 0 | G74: 0 | H74: 0 | I74: 0 | J74: 0 | K74: 0 | L74: 0 | M74: 0 | N74: 0 | O74: 0 | P74: 0 | Q74: 0 | R74: 0 | S74: 0 | U74: 0 | V74: 0 | W74: 0 | X74: 0 | Y74: 0 | Z74: 0 | AA74: 0 | AB74: 0 | AC74: 0 | AD74: 0 | AE74: 0 | AF74: 0 | AG74: 0 | AH74: 0 | AI74: 0
B75: =Input!K53 -> . | C75: 0 | D75: =Input!M53 -> 0 | E75: =Input!O53 -> 0 | F75: 0 | G75: 0 | H75: 0 | I75: 0 | J75: 0 | K75: 0 | L75: 0 | M75: 0 | N75: 0 | O75: 0 | P75: 0 | Q75: 0 | R75: 0 | S75: 0 | U75: 0 | V75: 0 | W75: 0 | X75: 0 | Y75: 0 | Z75: 0 | AA75: 0 | AB75: 0 | AC75: 0 | AD75: 0 | AE75: 0 | AF75: 0 | AG75: 0 | AH75: 0 | AI75: 0
A76: Total Added Income: | C76: =SUM(C62:C75) -> 3736676.894 | E76: =SUM(E67:E74,E62:E64) -> 360000 | F76: =SUM(F67:F74,F62:F64) -> 360000 | G76: 360000 | H76: 360000 | I76: 360000 | J76: 360000 | K76: 360000 | L76: 360000 | M76: 360000 | N76: 360000 | O76: 360000 | P76: 360000 | Q76: 360000 | R76: 360000 | S76: 360000 | U76: 342857.1429 | V76: 669387.7551 | W76: 980369.2906 | X76: 1276542.181 | Y76: 1558611.601 | Z76: 1827249.144 | AA76: 2083094.423 | AB76: 2326756.593 | AC76: 2558815.803 | AD76: 2779824.575 | AE76: 2990309.119 | AF76: 3190770.589 | AG76: 3381686.275 | AH76: 3563510.738 | AI76: 3736676.894
A77: Reduced Costs
B78: =Input!K56 -> . | C78: =IF($C$10=1,U78,IF($C$10=2,V78,IF($C$10=3,W78,IF($C$10=4,X78,IF($C$10=5,Y78,IF($C$10=6,Z78,IF($C$10=7,AA78,IF($C$10=8,AB78,IF($C$10=9,AC78,IF($C$10=10,AD78,IF($C$10=11,AE78,IF($C$10=12,AF78,IF($C$10=13,AG78,IF($C$10=14,AH78,AI78)))))))))))))) -> 0 | D78: =Input!M56 -> 0 | E78: =Input!O56 -> 0 | F78: =E78*(1+$D78*0.01) -> 0 | G78: 0 | H78: 0 | I78: 0 | J78: 0 | K78: 0 | L78: 0 | M78: 0 | N78: 0 | O78: 0 | P78: 0 | Q78: 0 | R78: 0 | S78: 0 | U78: 0 | V78: =NPV($C$8*0.01,E78:F78) -> 0 | W78: =NPV($C$8*0.01,E78:G78) -> 0 | X78: =NPV($C$8*0.01,E78:H78) -> 0 | Y78: =NPV($C$8*0.01,E78:I78) -> 0 | Z78: =NPV($C$8*0.01,E78:J78) -> 0 | AA78: =NPV($C$8*0.01,E78:K78) -> 0 | AB78: =NPV($C$8*0.01,E78:L78) -> 0 | AC78: =NPV($C$8*0.01,E78:M78) -> 0 | AD78: =NPV($C$8*0.01,E78:N78) -> 0 | AE78: =NPV($C$8*0.01,E78:O78) -> 0 | AF78: =NPV($C$8*0.01,E78:P78) -> 0 | AG78: =NPV($C$8*0.01,E78:Q78) -> 0 | AH78: =NPV($C$8*0.01,E78:R78) -> 0 | AI78: =NPV($C$8*0.01,E78:S78) -> 0
B79: =Input!K57 -> . | C79: 0 | D79: =Input!M57 -> 0 | E79: =Input!O57 -> 0 | F79: 0 | G79: 0 | H79: 0 | I79: 0 | J79: 0 | K79: 0 | L79: 0 | M79: 0 | N79: 0 | O79: 0 | P79: 0 | Q79: 0 | R79: 0 | S79: 0 | U79: 0 | V79: 0 | W79: 0 | X79: 0 | Y79: 0 | Z79: 0 | AA79: 0 | AB79: 0 | AC79: 0 | AD79: 0 | AE79: 0 | AF79: 0 | AG79: 0 | AH79: 0 | AI79: 0
B80: =Input!K58 -> . | C80: 0 | D80: =Input!M58 -> 0 | E80: =Input!O58 -> 0 | F80: 0 | G80: 0 | H80: 0 | I80: 0 | J80: 0 | K80: 0 | L80: 0 | M80: 0 | N80: 0 | O80: 0 | P80: 0 | Q80: 0 | R80: 0 | S80: 0 | U80: 0 | V80: 0 | W80: 0 | X80: 0 | Y80: 0 | Z80: 0 | AA80: 0 | AB80: 0 | AC80: 0 | AD80: 0 | AE80: 0 | AF80: 0 | AG80: 0 | AH80: 0 | AI80: 0
B81: =Input!K59 -> . | C81: 0 | D81: =Input!M59 -> 0 | E81: =Input!O59 -> 0 | F81: 0 | G81: 0 | H81: 0 | I81: 0 | J81: 0 | K81: 0 | L81: 0 | M81: 0 | N81: 0 | O81: 0 | P81: 0 | Q81: 0 | R81: 0 | S81: 0 | U81: 0 | V81: 0 | W81: 0 | X81: 0 | Y81: 0 | Z81: 0 | AA81: 0 | AB81: 0 | AC81: 0 | AD81: 0 | AE81: 0 | AF81: 0 | AG81: 0 | AH81: 0 | AI81: 0
A82: Total Reduced Costs | C82: =SUM(C78:C81) -> 0 | E82: =SUM(E78:E81) -> 0 | F82: 0 | G82: 0 | H82: 0 | I82: 0 | J82: 0 | K82: 0 | L82: 0 | M82: 0 | N82: 0 | O82: 0 | P82: 0 | Q82: 0 | R82: 0 | S82: 0 | U82: 0 | V82: 0 | W82: 0 | X82: 0 | Y82: 0 | Z82: 0 | AA82: 0 | AB82: 0 | AC82: 0 | AD82: 0 | AE82: 0 | AF82: 0 | AG82: 0 | AH82: 0 | AI82: 0
A84: TOTAL ADVANTAGES: | C84: =SUM(C76,C82) -> 3736676.894 | E84: =SUM(E76,E82) -> 360000 | F84: 360000 | G84: 360000 | H84: 360000 | I84: 360000 | J84: 360000 | K84: 360000 | L84: 360000 | M84: 360000 | N84: 360000 | O84: 360000 | P84: 360000 | Q84: 360000 | R84: 360000 | S84: 360000 | U84: =NPV($C$8*0.01,E84) -> 342857.1429 | V84: =NPV($C$8*0.01,E84:F84) -> 669387.7551 | W84: =NPV($C$8*0.01,E84:G84) -> 980369.2906 | X84: =NPV($C$8*0.01,E84:H84) -> 1276542.181 | Y84: =NPV($C$8*0.01,E84:I84) -> 1558611.601 | Z84: =NPV($C$8*0.01,E84:J84) -> 1827249.144 | AA84: =NPV($C$8*0.01,E84:K84) -> 2083094.423 | AB84: =NPV($C$8*0.01,E84:L84) -> 2326756.593 | AC84: =NPV($C$8*0.01,E84:M84) -> 2558815.803 | AD84: =NPV($C$8*0.01,E84:N84) -> 2779824.575 | AE84: =NPV($C$8*0.01,E84:O84) -> 2990309.119 | AF84: =NPV($C$8*0.01,E84:P84) -> 3190770.589 | AG84: =NPV($C$8*0.01,E84:Q84) -> 3381686.275 | AH84: =NPV($C$8*0.01,E84:R84) -> 3563510.738 | AI84: =NPV($C$8*0.01,E84:S84) -> 3736676.894
A86: NET GAIN (OR LOSS) | C86: =C84-C55 -> -483017.5869 | E86: =E84-E55 -> -40531.64784 | F86: -41188.68784 | G86: -41861.17367 | H86: -42549.48443 | I86: -43254.00887 | J86: -43975.14572 | K86: -44713.3039 | L86: -45468.90281 | M86: -46242.37262 | N86: -97034.15452 | O86: -42498.99909 | P86: -43328.77446 | Q86: -44178.25479 | R86: -45047.92848 | S86: -45938.29655 | U86: -38601.56938 | V86: =NPV($C$8*0.01,E86:F86) -> -75960.92342 | W86: =NPV($C$8*0.01,E86:G86) -> -112122.1792 | X86: =NPV($C$8*0.01,E86:H86) -> -147127.7453 | Y86: =NPV($C$8*0.01,E86:I86) -> -181018.3931 | Z86: =NPV($C$8*0.01,E86:J86) -> -213833.3239 | AA86: =NPV($C$8*0.01,E86:K86) -> -245610.2342 | AB86: =NPV($C$8*0.01,E86:L86) -> -276385.3773 | AC86: =NPV($C$8*0.01,E86:M86) -> -306193.623 | AD86: =NPV($C$8*0.01,E86:N86) -> -365764.1765 | AE86: =NPV($C$8*0.01,E86:O86) -> -390612.4611 | AF86: =NPV($C$8*0.01,E86:P86) -> -414739.544 | AG86: =NPV($C$8*0.01,E86:Q86) -> -438168.2158 | AH86: =NPV($C$8*0.01,E86:R86) -> -460920.4808 | AI86: =NPV($C$8*0.01,E86:S86) -> -483017.5869
A89: - Income Tax Considerations -
A91: Combined Federal & Ontario Tax Brackets and Tax Rates Including Surtaxes - 2016
B92: (The corporate tax calculations do not function for corportations with over $10 million in Taxable Capital )
B93: Capital Cost Allowance Tables | D93: Rate % | E93: |Asset Cost |UCC>
B94: Asset Purchase 1 | D94: =Input!D33 -> 20 | E94: =Input!D30*Input!D31/100 -> 242000 | F94: =IF(E$105>0,E94-E95,IF(E94-E95+(E95/(E$95+E$98+E$101)*(-E$105))<=+E94,E94-E95+(E95/(E$95+E$98+E$101)*(-E$105)),E94)) -> 228230.7039 | G94: =IF(F$105>0,F94-F95,IF(F94-F95+(F95/(F$95+F$98+F$101)*(-F$105))<=+F94,F94-F95+(F95/(F$95+F$98+F$101)*(-F$105)),F94)) -> 214471.971 | H94: 200727.1046 | I94: 187001.7172 | J94: 173304.262 | K94: 159646.6843 | L94: 146045.2244 | M94: 132521.4141 | N94: 119103.3228 | O94: 119103.3228 | P94: 105505.1856 | Q94: 92186.45909 | R94: 79203.89064 | S94: 66628.84117
B95: =Input!D29 -> Equipment | D95: C.C.A. | E95: =E94*($D$94/100)*(Input!D32/100) -> 24200 | F95: =F94*$D$94*0.01 -> 45646.14078 | G95: 42894.3942 | H95: 40145.42092 | I95: 37400.34343 | J95: 34660.85239 | K95: 31929.33685 | L95: 29209.04488 | M95: 26504.28282 | N95: 23820.66456 | O95: 23820.66456 | P95: 21101.03711 | Q95: 18437.29182 | R95: 15840.77813 | S95: 13325.76823
B97: Asset Purchase 2 | D97: =Input!D40 -> 10 | E97: =Input!D37*Input!D38/100 -> 688000 | F97: =IF(E$105>0,E97-E98,IF(E97-E98+(E98/(E$95+E$98+E$101)*(-E$105))<=+E97,E97-E98+(E98/(E$95+E$98+E$101)*(-E$105)),E97)) -> 668427.1163 | G97: 648279.2791 | H97: 627506.1401 | I97: 606052.2241 | J97: 583856.2429 | K97: 560850.2825 | L97: 536958.8291 | M97: 512097.594 | N97: 486172.0773 | O97: 486172.0773 | P97: 458418.7179 | Q97: 429483.8676 | R97: 399241.8789 | S97: 367548.446
B98: =Input!D36 -> Building | D98: C.C.A. | E98: =E97*($D$97/100)*(Input!D39/100) -> 34400 | F98: =F97*$D$97*0.01 -> 66842.71163 | G98: 64827.92791 | H98: 62750.61401 | I98: 60605.22241 | J98: 58385.62429 | K98: 56085.02825 | L98: 53695.88291 | M98: 51209.7594 | N98: 48617.20773 | O98: 48617.20773 | P98: 45841.87179 | Q98: 42948.38676 | R98: 39924.18789 | S98: 36754.8446
B100: Asset Purchase 3 | D100: =Input!D47 -> 0 | E100: =Input!D44*Input!D45/100 -> 0 | F100: =IF(E$105>0,E100-E101,IF(E100-E101+(E101/(E$95+E$98+E$101)*(-E$105))<=+E100,E100-E101+(E101/(E$95+E$98+E$101)*(-E$105)),E100)) -> 0 | G100: 0 | H100: 0 | I100: 0 | J100: 0 | K100: 0 | L100: 0 | M100: 0 | N100: 0 | O100: 0 | P100: 0 | Q100: 0 | R100: 0 | S100: 0
B101: =Input!D43 -> 0 | D101: C.C.A. | E101: =E100*($D$100/100)*(Input!D46/100) -> 0 | F101: =F100*$D$100*0.01 -> 0 | G101: 0 | H101: 0 | I101: 0 | J101: 0 | K101: 0 | L101: 0 | M101: 0 | N101: 0 | O101: 0 | P101: 0 | Q101: 0 | R101: 0 | S101: 0
B103: Total C.C.A. Expense | E103: =E95+E98+E101 -> 58600 | F103: 112488.8524 | G103: 107722.3221 | H103: 102896.0349 | I103: 98005.56585 | J103: 93046.47669 | K103: 88014.3651 | L103: 82904.92779 | M103: 77714.04221 | N103: 72437.87229 | O103: 72437.87229 | P103: 66942.90891 | Q103: 61385.67857 | R103: 55764.96602 | S103: 50080.61284
B105: Taxable Income: Before | C105: =Input!F19 -> 40000 | D105: After: | E105: =$C$105+SUM(E82,E67:E75)-(E55-(SUM(E23:E25,E49))+E103) -> -25257.8202 | F105: =$C$105+SUM(F82,F67:F75)-(F55-(SUM(F23:F25,F49))+F103) -> -78582.28228 | G105: -73204.31678 | H105: -67716.7315 | I105: -62112.12945 | J105: -56382.93852 | K105: -50521.45189 | L105: -44519.88231 | M105: -38370.43429 | N105: -82065.39997 | O105: -31086.37568 | P105: -24689.33206 | Q105: -18161.12143 | R105: -11496.48371 | S105: -4690.99641
B107: Tax payable: Before | C107: =IF(Input!$E$21=3,Tax!C$23, IF(Input!$E$21=2, Tax!C$16,Tax!C$9)) -> 3566.689 | D107: After: | E107: =IF(Input!$E$21=3,Tax!E$23, IF(Input!$E$21=2, Tax!E$16,Tax!E$9)) -> 0 | F107: =IF(Input!$E$21=3,Tax!F$23, IF(Input!$E$21=2, Tax!F$16,Tax!F$9)) -> 0 | G107: =IF(Input!$E$21=3,Tax!G$23, IF(Input!$E$21=2, Tax!G$16,Tax!G$9)) -> 0 | H107: =IF(Input!$E$21=3,Tax!H$23, IF(Input!$E$21=2, Tax!H$16,Tax!H$9)) -> 0 | I107: =IF(Input!$E$21=3,Tax!I$23, IF(Input!$E$21=2, Tax!I$16,Tax!I$9)) -> 0 | J107: =IF(Input!$E$21=3,Tax!J$23, IF(Input!$E$21=2, Tax!J$16,Tax!J$9)) -> 0 | K107: =IF(Input!$E$21=3,Tax!K$23, IF(Input!$E$21=2, Tax!K$16,Tax!K$9)) -> 0 | L107: =IF(Input!$E$21=3,Tax!L$23, IF(Input!$E$21=2, Tax!L$16,Tax!L$9)) -> 0 | M107: =IF(Input!$E$21=3,Tax!M$23, IF(Input!$E$21=2, Tax!M$16,Tax!M$9)) -> 0 | N107: =IF(Input!$E$21=3,Tax!N$23, IF(Input!$E$21=2, Tax!N$16,Tax!N$9)) -> 0 | O107: =IF(Input!$E$21=3,Tax!O$23, IF(Input!$E$21=2, Tax!O$16,Tax!O$9)) -> 0 | P107: =IF(Input!$E$21=3,Tax!P$23, IF(Input!$E$21=2, Tax!P$16,Tax!P$9)) -> 0 | Q107: =IF(Input!$E$21=3,Tax!Q$23, IF(Input!$E$21=2, Tax!Q$16,Tax!Q$9)) -> 0 | R107: =IF(Input!$E$21=3,Tax!R$23, IF(Input!$E$21=2, Tax!R$16,Tax!R$9)) -> 0 | S107: =IF(Input!$E$21=3,Tax!S$23, IF(Input!$E$21=2, Tax!S$16,Tax!S$9)) -> 0
B109: NET CASH POSITION | C109: (BEFORE TAX) | E109: =(E76+E82)-(SUM(E23:E45)+E53) -> -40531.64784 | F109: -41188.68784 | G109: -41861.17367 | H109: -42549.48443 | I109: -43254.00887 | J109: -43975.14572 | K109: -44713.3039 | L109: -45468.90281 | M109: -46242.37262 | N109: -97034.15452 | O109: -42498.99909 | P109: -43328.77446 | Q109: -44178.25479 | R109: -45047.92848 | S109: -45938.29655
B110: (INCLUDING PRINCIPAL PAYMENTS)
B112: TAX PAID - INCREASE OR (DECREASE) | E112: =E107-$C$107 -> -3566.689 | F112: -3566.689 | G112: -3566.689 | H112: -3566.689 | I112: -3566.689 | J112: -3566.689 | K112: -3566.689 | L112: -3566.689 | M112: -3566.689 | N112: -3566.689 | O112: -3566.689 | P112: -3566.689 | Q112: -3566.689 | R112: -3566.689 | S112: -3566.689
B114: NET CASH POSITION AFTER TAXES | E114: =E105-E107+E103-(SUM(E23:E25)) -> 9468.352155 | F114: 8811.312161 | G114: 8138.826328 | H114: 7450.515573 | I114: 6745.991127 | J114: 6024.854276 | K114: 5286.696098 | L114: 4531.097187 | M114: 3757.62738 | N114: -47034.15452 | O114: 7501.000905 | P114: 6671.22554 | Q114: 5821.745214 | R114: 4952.07152 | S114: 4061.703455
B115: & PRINCIPAL ARE PAID
B116: NET CHANGE IN POSITION | E116: =E109-E112 -> -36964.95884 | F116: =F109-F112 -> -37621.99884 | G116: -38294.48467 | H116: -38982.79543 | I116: -39687.31987 | J116: -40408.45672 | K116: -41146.6149 | L116: -41902.21381 | M116: -42675.68362 | N116: -93467.46552 | O116: -38932.31009 | P116: -39762.08546 | Q116: -40611.56579 | R116: -41481.23948 | S116: -42371.60755
B117: from INVESTMENT | C117: CUMULATIVE Position | F117: =E116+F116 -> -74586.95768 | G117: =F117+G116 -> -112881.4424 | H117: =G117+H116 -> -151864.2378 | I117: -191551.5577 | J117: -231960.0144 | K117: -273106.6293 | L117: -315008.8431 | M117: -357684.5267 | N117: -451151.9922 | O117: -490084.3023 | P117: -529846.3878 | Q117: -570457.9536 | R117: -611939.1931 | S117: -654310.8006
B118: Note: Liability for the interpretation of these results, rests with the user.
B120: End of worksheet
B168: CASH BASIS CAPITAL INVESTMENT WORKSHEET
B177: NAME: | D177: =Input!C10 -> Jolene and Joe Farms
B179: INVESTMENT: | D179: =Input!D12 -> 2000 head hog finishing barn
B186: =NOW() -> 2024-11-29T15:38:56.810
N191: oooo | O191: m m | P191: a | Q191: ffffff
N192: o o | O192: m m m m | P192: a a | Q192: f
N193: o o | O193: m m m | P193: aaaaa | Q193: fff
N194: o o | O194: m m | P194: a a | Q194: f
N195: oooo | O195: m m | P195: a a | Q195: f

Sheet Tax
A1: Combined Federal & Ontario Tax Brackets and Tax Rates Including Surtaxes - 2016
G2: Ministry of Agriculture, Food and Rural Affairs
G3: AGRICULTURE DEVELOPMENT BRANCH
G4: BUSINESS MANAGEMENT UNIT
A5: Sole Proprietorship | E5: Years>
E6: 1 | F6: 2 | G6: 3 | H6: 4 | I6: 5 | J6: 6 | K6: 7 | L6: 8 | M6: 9 | N6: 10 | O6: 11 | P6: 12 | Q6: 13 | R6: 14 | S6: 15
B7: Taxable Income: Before | C7: =Input!F19 -> 40000 | D7: After: | E7: =Reports!E105 -> -25257.8202 | F7: =Reports!F105 -> -78582.28228 | G7: =Reports!G105 -> -73204.31678 | H7: =Reports!H105 -> -67716.7315 | I7: =Reports!I105 -> -62112.12945 | J7: =Reports!J105 -> -56382.93852 | K7: =Reports!K105 -> -50521.45189 | L7: =Reports!L105 -> -44519.88231 | M7: =Reports!M105 -> -38370.43429 | N7: =Reports!N105 -> -82065.39997 | O7: =Reports!O105 -> -31086.37568 | P7: =Reports!P105 -> -24689.33206 | Q7: =Reports!Q105 -> -18161.12143 | R7: =Reports!R105 -> -11496.48371 | S7: =Reports!S105 -> -4690.99641
B9: Tax payable: Before | C9: =IF(C7<0.01,0,IF(C7<0.01,0,IF(C7>$K$59,$I$59+($B$60*(C7-$K$59)),IF(C7>$K$58,$I$58+($B$59*(C7-$K$58)),IF(C7>$K$57,$I$57+($B$58*(C7-$K$57)),IF(C7>$K$56, $I$56+($B$57*(C7-$K$56)),IF(C7>$K$55,$I$55+($B$56*(C7-$K$55)),IF(C7>$K$54,$I$54+($B$55*(C7-$K$54)),IF(C7>$K$53,$I$53+($B$54*(C7-$K$53)),IF(C7>$K$52,$I$52+($B$53*(C7-$K$52)),IF(C7>$K$51,$I$51+($B$52*(C7-$K$51)),IF(C7>$K$50,$I$50+($B$51*(C7-$K$50)),$B$50*C7)))))))))))-MIN(C7*$A$35,$B$63)-MIN(C7*$A$29,$B$65)) -> 5793.3445 | D9: After: | E9: =IF(E7<0.01,0,IF(E7<0.01,0,IF(E7>$K$59,$I$59+($B$60*(E7-$K$59)),IF(E7>$K$58,$I$58+($B$59*(E7-$K$58)),IF(E7>$K$57,$I$57+($B$58*(E7-$K$57)),IF(E7>$K$56, $I$56+($B$57*(E7-$K$56)),IF(E7>$K$55,$I$55+($B$56*(E7-$K$55)),IF(E7>$K$54,$I$54+($B$55*(E7-$K$54)),IF(E7>$K$53,$I$53+($B$54*(E7-$K$53)),IF(E7>$K$52,$I$52+($B$53*(E7-$K$52)),IF(E7>$K$51,$I$51+($B$52*(E7-$K$51)),IF(E7>$K$50,$I$50+($B$51*(E7-$K$50)),$B$50*E7)))))))))))-MIN(E7*$A$35,$B$63)-MIN(E7*$A$29,$B$65)) -> 0 | F9: 0 | G9: 0 | H9: 0 | I9: 0 | J9: 0 | K9: 0 | L9: 0 | M9: 0 | N9: 0 | O9: 0 | P9: 0 | Q9: 0 | R9: 0 | S9: 0
A12: Partnership
B14: Taxable Income: Before | C14: =Input!F19 -> 40000 | D14: After: | E14: =E7 -> -25257.8202 | F14: =F7 -> -78582.28228 | G14: -73204.31678 | H14: -67716.7315 | I14: -62112.12945 | J14: -56382.93852 | K14: -50521.45189 | L14: -44519.88231 | M14: -38370.43429 | N14: -82065.39997 | O14: -31086.37568 | P14: -24689.33206 | Q14: -18161.12143 | R14: -11496.48371 | S14: -4690.99641
B15: Partners Income: Before | C15: =IF(Input!$E$23>0,Input!$F$19/Input!$E$23,Input!$F$19) -> 20000 | D15: After: | E15: =IF(Input!$E$23>0,E$7/Input!$E$23,E$7) -> -12628.9101 | F15: =IF(Input!$E$23>0,F$7/Input!$E$23,F$7) -> -39291.14114 | G15: =IF(Input!$E$23>0,G$7/Input!$E$23,G$7) -> -36602.15839 | H15: =IF(Input!$E$23>0,H$7/Input!$E$23,H$7) -> -33858.36575 | I15: =IF(Input!$E$23>0,I$7/Input!$E$23,I$7) -> -31056.06472 | J15: =IF(Input!$E$23>0,J$7/Input!$E$23,J$7) -> -28191.46926 | K15: =IF(Input!$E$23>0,K$7/Input!$E$23,K$7) -> -25260.72595 | L15: =IF(Input!$E$23>0,L$7/Input!$E$23,L$7) -> -22259.94115 | M15: =IF(Input!$E$23>0,M$7/Input!$E$23,M$7) -> -19185.21714 | N15: =IF(Input!$E$23>0,N$7/Input!$E$23,N$7) -> -41032.69998 | O15: =IF(Input!$E$23>0,O$7/Input!$E$23,O$7) -> -15543.18784 | P15: =IF(Input!$E$23>0,P$7/Input!$E$23,P$7) -> -12344.66603 | Q15: =IF(Input!$E$23>0,Q$7/Input!$E$23,Q$7) -> -9080.560713 | R15: =IF(Input!$E$23>0,R$7/Input!$E$23,R$7) -> -5748.241857 | S15: =IF(Input!$E$23>0,S$7/Input!$E$23,S$7) -> -2345.498205
B16: Total Tax payable: Before | C16: =IF(C15<0.01,0,IF(Input!$E$23>0,IF(C15<0.01,0,IF(C15>$K$59,$I$59+($B$60*(C15-$K$59)),IF(C15>$K$58,$I$58+($B$59*(C15-$K$58)),IF(C15>$K$57,$I$57+($B$58*(C15-$K$57)),IF(C15>$K$56, $I$56+($B$57*(C15-$K$56)),IF(C15>$K$55,$I$55+($B$56*(C15-$K$55)),IF(C15>$K$54,$I$54+($B$55*(C15-$K$54)),IF(C15>$K$53,$I$53+($B$54*(C15-$K$53)),IF(C15>$K$52,$I$52+($B$53*(C15-$K$52)),IF(C15>$K$51,$I$51+($B$52*(C15-$K$51)),IF(C15>$K$50,$I$50+($B$51*(C15-$K$50)),$B$50*C15)))))))))))-MIN(C15*$A$35,$B$63)-MIN(C15*$A$29,$B$65),C9)*Input!$E$23) -> 3566.689 | D16: After: | E16: =IF(E15<0.01,0,IF(Input!$E$23>0,IF(E15<0.01,0,IF(E15>$K$59,$I$59+($B$60*(E15-$K$59)),IF(E15>$K$58,$I$58+($B$59*(E15-$K$58)),IF(E15>$K$57,$I$57+($B$58*(E15-$K$57)),IF(E15>$K$56, $I$56+($B$57*(E15-$K$56)),IF(E15>$K$55,$I$55+($B$56*(E15-$K$55)),IF(E15>$K$54,$I$54+($B$55*(E15-$K$54)),IF(E15>$K$53,$I$53+($B$54*(E15-$K$53)),IF(E15>$K$52,$I$52+($B$53*(E15-$K$52)),IF(E15>$K$51,$I$51+($B$52*(E15-$K$51)),IF(E15>$K$50,$I$50+($B$51*(E15-$K$50)),$B$50*E15)))))))))))-MIN(E15*$A$35,$B$63)-MIN(E15*$A$29,$B$65),E9)*Input!$E$23) -> 0 | F16: =IF(F15<0.01,0,IF(Input!$E$23>0,IF(F15<0.01,0,IF(F15>$K$59,$I$59+($B$60*(F15-$K$59)),IF(F15>$K$58,$I$58+($B$59*(F15-$K$58)),IF(F15>$K$57,$I$57+($B$58*(F15-$K$57)),IF(F15>$K$56, $I$56+($B$57*(F15-$K$56)),IF(F15>$K$55,$I$55+($B$56*(F15-$K$55)),IF(F15>$K$54,$I$54+($B$55*(F15-$K$54)),IF(F15>$K$53,$I$53+($B$54*(F15-$K$53)),IF(F15>$K$52,$I$52+($B$53*(F15-$K$52)),IF(F15>$K$51,$I$51+($B$52*(F15-$K$51)),IF(F15>$K$50,$I$50+($B$51*(F15-$K$50)),$B$50*F15)))))))))))-MIN(F15*$A$35,$B$63)-MIN(F15*$A$29,$B$65),F9)*Input!$E$23) -> 0 | G16: =IF(G15<0.01,0,IF(Input!$E$23>0,IF(G15<0.01,0,IF(G15>$K$59,$I$59+($B$60*(G15-$K$59)),IF(G15>$K$58,$I$58+($B$59*(G15-$K$58)),IF(G15>$K$57,$I$57+($B$58*(G15-$K$57)),IF(G15>$K$56, $I$56+($B$57*(G15-$K$56)),IF(G15>$K$55,$I$55+($B$56*(G15-$K$55)),IF(G15>$K$54,$I$54+($B$55*(G15-$K$54)),IF(G15>$K$53,$I$53+($B$54*(G15-$K$53)),IF(G15>$K$52,$I$52+($B$53*(G15-$K$52)),IF(G15>$K$51,$I$51+($B$52*(G15-$K$51)),IF(G15>$K$50,$I$50+($B$51*(G15-$K$50)),$B$50*G15)))))))))))-MIN(G15*$A$35,$B$63)-MIN(G15*$A$29,$B$65),G9)*Input!$E$23) -> 0 | H16: =IF(H15<0.01,0,IF(Input!$E$23>0,IF(H15<0.01,0,IF(H15>$K$59,$I$59+($B$60*(H15-$K$59)),IF(H15>$K$58,$I$58+($B$59*(H15-$K$58)),IF(H15>$K$57,$I$57+($B$58*(H15-$K$57)),IF(H15>$K$56, $I$56+($B$57*(H15-$K$56)),IF(H15>$K$55,$I$55+($B$56*(H15-$K$55)),IF(H15>$K$54,$I$54+($B$55*(H15-$K$54)),IF(H15>$K$53,$I$53+($B$54*(H15-$K$53)),IF(H15>$K$52,$I$52+($B$53*(H15-$K$52)),IF(H15>$K$51,$I$51+($B$52*(H15-$K$51)),IF(H15>$K$50,$I$50+($B$51*(H15-$K$50)),$B$50*H15)))))))))))-MIN(H15*$A$35,$B$63)-MIN(H15*$A$29,$B$65),H9)*Input!$E$23) -> 0 | I16: =IF(I15<0.01,0,IF(Input!$E$23>0,IF(I15<0.01,0,IF(I15>$K$59,$I$59+($B$60*(I15-$K$59)),IF(I15>$K$58,$I$58+($B$59*(I15-$K$58)),IF(I15>$K$57,$I$57+($B$58*(I15-$K$57)),IF(I15>$K$56, $I$56+($B$57*(I15-$K$56)),IF(I15>$K$55,$I$55+($B$56*(I15-$K$55)),IF(I15>$K$54,$I$54+($B$55*(I15-$K$54)),IF(I15>$K$53,$I$53+($B$54*(I15-$K$53)),IF(I15>$K$52,$I$52+($B$53*(I15-$K$52)),IF(I15>$K$51,$I$51+($B$52*(I15-$K$51)),IF(I15>$K$50,$I$50+($B$51*(I15-$K$50)),$B$50*I15)))))))))))-MIN(I15*$A$35,$B$63)-MIN(I15*$A$29,$B$65),I9)*Input!$E$23) -> 0 | J16: =IF(J15<0.01,0,IF(Input!$E$23>0,IF(J15<0.01,0,IF(J15>$K$59,$I$59+($B$60*(J15-$K$59)),IF(J15>$K$58,$I$58+($B$59*(J15-$K$58)),IF(J15>$K$57,$I$57+($B$58*(J15-$K$57)),IF(J15>$K$56, $I$56+($B$57*(J15-$K$56)),IF(J15>$K$55,$I$55+($B$56*(J15-$K$55)),IF(J15>$K$54,$I$54+($B$55*(J15-$K$54)),IF(J15>$K$53,$I$53+($B$54*(J15-$K$53)),IF(J15>$K$52,$I$52+($B$53*(J15-$K$52)),IF(J15>$K$51,$I$51+($B$52*(J15-$K$51)),IF(J15>$K$50,$I$50+($B$51*(J15-$K$50)),$B$50*J15)))))))))))-MIN(J15*$A$35,$B$63)-MIN(J15*$A$29,$B$65),J9)*Input!$E$23) -> 0 | K16: =IF(K15<0.01,0,IF(Input!$E$23>0,IF(K15<0.01,0,IF(K15>$K$59,$I$59+($B$60*(K15-$K$59)),IF(K15>$K$58,$I$58+($B$59*(K15-$K$58)),IF(K15>$K$57,$I$57+($B$58*(K15-$K$57)),IF(K15>$K$56, $I$56+($B$57*(K15-$K$56)),IF(K15>$K$55,$I$55+($B$56*(K15-$K$55)),IF(K15>$K$54,$I$54+($B$55*(K15-$K$54)),IF(K15>$K$53,$I$53+($B$54*(K15-$K$53)),IF(K15>$K$52,$I$52+($B$53*(K15-$K$52)),IF(K15>$K$51,$I$51+($B$52*(K15-$K$51)),IF(K15>$K$50,$I$50+($B$51*(K15-$K$50)),$B$50*K15)))))))))))-MIN(K15*$A$35,$B$63)-MIN(K15*$A$29,$B$65),K9)*Input!$E$23) -> 0 | L16: =IF(L15<0.01,0,IF(Input!$E$23>0,IF(L15<0.01,0,IF(L15>$K$59,$I$59+($B$60*(L15-$K$59)),IF(L15>$K$58,$I$58+($B$59*(L15-$K$58)),IF(L15>$K$57,$I$57+($B$58*(L15-$K$57)),IF(L15>$K$56, $I$56+($B$57*(L15-$K$56)),IF(L15>$K$55,$I$55+($B$56*(L15-$K$55)),IF(L15>$K$54,$I$54+($B$55*(L15-$K$54)),IF(L15>$K$53,$I$53+($B$54*(L15-$K$53)),IF(L15>$K$52,$I$52+($B$53*(L15-$K$52)),IF(L15>$K$51,$I$51+($B$52*(L15-$K$51)),IF(L15>$K$50,$I$50+($B$51*(L15-$K$50)),$B$50*L15)))))))))))-MIN(L15*$A$35,$B$63)-MIN(L15*$A$29,$B$65),L9)*Input!$E$23) -> 0 | M16: =IF(M15<0.01,0,IF(Input!$E$23>0,IF(M15<0.01,0,IF(M15>$K$59,$I$59+($B$60*(M15-$K$59)),IF(M15>$K$58,$I$58+($B$59*(M15-$K$58)),IF(M15>$K$57,$I$57+($B$58*(M15-$K$57)),IF(M15>$K$56, $I$56+($B$57*(M15-$K$56)),IF(M15>$K$55,$I$55+($B$56*(M15-$K$55)),IF(M15>$K$54,$I$54+($B$55*(M15-$K$54)),IF(M15>$K$53,$I$53+($B$54*(M15-$K$53)),IF(M15>$K$52,$I$52+($B$53*(M15-$K$52)),IF(M15>$K$51,$I$51+($B$52*(M15-$K$51)),IF(M15>$K$50,$I$50+($B$51*(M15-$K$50)),$B$50*M15)))))))))))-MIN(M15*$A$35,$B$63)-MIN(M15*$A$29,$B$65),M9)*Input!$E$23) -> 0 | N16: =IF(N15<0.01,0,IF(Input!$E$23>0,IF(N15<0.01,0,IF(N15>$K$59,$I$59+($B$60*(N15-$K$59)),IF(N15>$K$58,$I$58+($B$59*(N15-$K$58)),IF(N15>$K$57,$I$57+($B$58*(N15-$K$57)),IF(N15>$K$56, $I$56+($B$57*(N15-$K$56)),IF(N15>$K$55,$I$55+($B$56*(N15-$K$55)),IF(N15>$K$54,$I$54+($B$55*(N15-$K$54)),IF(N15>$K$53,$I$53+($B$54*(N15-$K$53)),IF(N15>$K$52,$I$52+($B$53*(N15-$K$52)),IF(N15>$K$51,$I$51+($B$52*(N15-$K$51)),IF(N15>$K$50,$I$50+($B$51*(N15-$K$50)),$B$50*N15)))))))))))-MIN(N15*$A$35,$B$63)-MIN(N15*$A$29,$B$65),N9)*Input!$E$23) -> 0 | O16: =IF(O15<0.01,0,IF(Input!$E$23>0,IF(O15<0.01,0,IF(O15>$K$59,$I$59+($B$60*(O15-$K$59)),IF(O15>$K$58,$I$58+($B$59*(O15-$K$58)),IF(O15>$K$57,$I$57+($B$58*(O15-$K$57)),IF(O15>$K$56, $I$56+($B$57*(O15-$K$56)),IF(O15>$K$55,$I$55+($B$56*(O15-$K$55)),IF(O15>$K$54,$I$54+($B$55*(O15-$K$54)),IF(O15>$K$53,$I$53+($B$54*(O15-$K$53)),IF(O15>$K$52,$I$52+($B$53*(O15-$K$52)),IF(O15>$K$51,$I$51+($B$52*(O15-$K$51)),IF(O15>$K$50,$I$50+($B$51*(O15-$K$50)),$B$50*O15)))))))))))-MIN(O15*$A$35,$B$63)-MIN(O15*$A$29,$B$65),O9)*Input!$E$23) -> 0 | P16: =IF(P15<0.01,0,IF(Input!$E$23>0,IF(P15<0.01,0,IF(P15>$K$59,$I$59+($B$60*(P15-$K$59)),IF(P15>$K$58,$I$58+($B$59*(P15-$K$58)),IF(P15>$K$57,$I$57+($B$58*(P15-$K$57)),IF(P15>$K$56, $I$56+($B$57*(P15-$K$56)),IF(P15>$K$55,$I$55+($B$56*(P15-$K$55)),IF(P15>$K$54,$I$54+($B$55*(P15-$K$54)),IF(P15>$K$53,$I$53+($B$54*(P15-$K$53)),IF(P15>$K$52,$I$52+($B$53*(P15-$K$52)),IF(P15>$K$51,$I$51+($B$52*(P15-$K$51)),IF(P15>$K$50,$I$50+($B$51*(P15-$K$50)),$B$50*P15)))))))))))-MIN(P15*$A$35,$B$63)-MIN(P15*$A$29,$B$65),P9)*Input!$E$23) -> 0 | Q16: =IF(Q15<0.01,0,IF(Input!$E$23>0,IF(Q15<0.01,0,IF(Q15>$K$59,$I$59+($B$60*(Q15-$K$59)),IF(Q15>$K$58,$I$58+($B$59*(Q15-$K$58)),IF(Q15>$K$57,$I$57+($B$58*(Q15-$K$57)),IF(Q15>$K$56, $I$56+($B$57*(Q15-$K$56)),IF(Q15>$K$55,$I$55+($B$56*(Q15-$K$55)),IF(Q15>$K$54,$I$54+($B$55*(Q15-$K$54)),IF(Q15>$K$53,$I$53+($B$54*(Q15-$K$53)),IF(Q15>$K$52,$I$52+($B$53*(Q15-$K$52)),IF(Q15>$K$51,$I$51+($B$52*(Q15-$K$51)),IF(Q15>$K$50,$I$50+($B$51*(Q15-$K$50)),$B$50*Q15)))))))))))-MIN(Q15*$A$35,$B$63)-MIN(Q15*$A$29,$B$65),Q9)*Input!$E$23) -> 0 | R16: =IF(R15<0.01,0,IF(Input!$E$23>0,IF(R15<0.01,0,IF(R15>$K$59,$I$59+($B$60*(R15-$K$59)),IF(R15>$K$58,$I$58+($B$59*(R15-$K$58)),IF(R15>$K$57,$I$57+($B$58*(R15-$K$57)),IF(R15>$K$56, $I$56+($B$57*(R15-$K$56)),IF(R15>$K$55,$I$55+($B$56*(R15-$K$55)),IF(R15>$K$54,$I$54+($B$55*(R15-$K$54)),IF(R15>$K$53,$I$53+($B$54*(R15-$K$53)),IF(R15>$K$52,$I$52+($B$53*(R15-$K$52)),IF(R15>$K$51,$I$51+($B$52*(R15-$K$51)),IF(R15>$K$50,$I$50+($B$51*(R15-$K$50)),$B$50*R15)))))))))))-MIN(R15*$A$35,$B$63)-MIN(R15*$A$29,$B$65),R9)*Input!$E$23) -> 0 | S16: =IF(S15<0.01,0,IF(Input!$E$23>0,IF(S15<0.01,0,IF(S15>$K$59,$I$59+($B$60*(S15-$K$59)),IF(S15>$K$58,$I$58+($B$59*(S15-$K$58)),IF(S15>$K$57,$I$57+($B$58*(S15-$K$57)),IF(S15>$K$56, $I$56+($B$57*(S15-$K$56)),IF(S15>$K$55,$I$55+($B$56*(S15-$K$55)),IF(S15>$K$54,$I$54+($B$55*(S15-$K$54)),IF(S15>$K$53,$I$53+($B$54*(S15-$K$53)),IF(S15>$K$52,$I$52+($B$53*(S15-$K$52)),IF(S15>$K$51,$I$51+($B$52*(S15-$K$51)),IF(S15>$K$50,$I$50+($B$51*(S15-$K$50)),$B$50*S15)))))))))))-MIN(S15*$A$35,$B$63)-MIN(S15*$A$29,$B$65),S9)*Input!$E$23) -> 0
B17: Individual Tax Payable:Before | C17: =IF(Input!$E$23>0,C16/Input!$E$23,C9) -> 1783.3445 | E17: =IF(Input!$E$23>0,E16/Input!$E$23,E9) -> 0 | F17: =IF(Input!$E$23>0,F16/Input!$E$23,F9) -> 0 | G17: =IF(Input!$E$23>0,G16/Input!$E$23,G9) -> 0 | H17: =IF(Input!$E$23>0,H16/Input!$E$23,H9) -> 0 | I17: =IF(Input!$E$23>0,I16/Input!$E$23,I9) -> 0 | J17: =IF(Input!$E$23>0,J16/Input!$E$23,J9) -> 0 | K17: =IF(Input!$E$23>0,K16/Input!$E$23,K9) -> 0 | L17: =IF(Input!$E$23>0,L16/Input!$E$23,L9) -> 0 | M17: =IF(Input!$E$23>0,M16/Input!$E$23,M9) -> 0 | N17: =IF(Input!$E$23>0,N16/Input!$E$23,N9) -> 0 | O17: =IF(Input!$E$23>0,O16/Input!$E$23,O9) -> 0 | P17: =IF(Input!$E$23>0,P16/Input!$E$23,P9) -> 0 | Q17: =IF(Input!$E$23>0,Q16/Input!$E$23,Q9) -> 0 | R17: =IF(Input!$E$23>0,R16/Input!$E$23,R9) -> 0 | S17: =IF(Input!$E$23>0,S16/Input!$E$23,S9) -> 0
A19: Corporations ( Based on Fed - Prov. Combined Rates for Canadian Controlled Corporations with less than $10 million taxable capital)
B21: Taxable Income: Before | C21: =Input!F19 -> 40000 | D21: After: | E21: =E7 -> -25257.8202 | F21: =F14 -> -78582.28228 | G21: -73204.31678 | H21: -67716.7315 | I21: -62112.12945 | J21: -56382.93852 | K21: -50521.45189 | L21: -44519.88231 | M21: -38370.43429 | N21: -82065.39997 | O21: -31086.37568 | P21: -24689.33206 | Q21: -18161.12143 | R21: -11496.48371 | S21: -4690.99641
B23: Total Tax payable: Before | C23: =IF(C21<0.01,0,IF(C21<$W$28,C21*$U$28+C21*$U$33,$W$28*$U$28+$W$28*$U$33+(C21-$W$28)*$V$28+(C21-$W$28)*$V$33)) -> 6000 | D23: After: | E23: =IF(E21<0.01,0,IF(E21<$W$28,E21*$U$28+E21*$U$33,$W$28*$U$28+$W$28*$U$33+(E21-$W$28)*$V$28+(E21-$W$28)*$V$33)) -> 0 | F23: =IF(F21<0.01,0,IF(F21<$W$28,F21*$U$28+F21*$U$33,$W$28*$U$28+$W$28*$U$33+(F21-$W$28)*$V$28+(F21-$W$28)*$V$33)) -> 0 | G23: 0 | H23: 0 | I23: 0 | J23: 0 | K23: 0 | L23: 0 | M23: 0 | N23: 0 | O23: 0 | P23: 0 | Q23: 0 | R23: 0 | S23: 0
A26: Tax Notes: | B26: 2016 Tax Rates
A27: Sole Proprietorship: | H27: Partnership | N27: Corporations: | U27: under $500,000 | V27: over $500,000 | W27: Taxable income limit | X27: 650000
A28: Federal | N28: Federal Tax: | P28: The rates used apply to Canadian controlled | U28: 0.105 | V28: 0.15 | W28: 500000 | Y28: =W28*U28 -> 52500 | Z28: =W28*U33 -> 22500
A29: 0.15 | B29: $0 to $45,282 | H29: Program takes Taxaxble Income, then divides by active | N29: private corporations, which are eligible for the federal small business | X29: 150000 | Y29: =X29*V28 -> 22500 | Z29: =X29*V33 -> 17250
A30: 0.205 | B30: on the next $45,281 of taxable income (on the portion of taxable income over $45,282 up to $90,563), + | H30: number of partners, and uses sole proprietor tax calculations. | N30: deduction ( ie- =< $10 million taxable capital, granting $500,000 | Z30: =SUM(Y28:Z29) -> 114750
A31: 0.26 | B31: on the next $49,825 of taxable income (on the portion of taxable income over $90,563 up to $140,388), + | H31: The summation of the individual partners tax payable is the | N31: taxable income eligible for the 10.5.% rate).
A32: 0.29 | B32: on the next $59,612 of taxable income (on the portion of taxable income over $140,388 up to $200,000), + | H32: tax due and payable by the partnership. | X32: =C21 -> 40000
A33: 0.33 | B33: of taxable income over $200,000. | N33: Provincial Tax: | P33: The small business income tax rate is 4.5% | U33: 0.045 | V33: 0.115 | X33: =X32*U33 -> 1800 | Y33: ON
A34: Provincial | N34: for the first $500,000 in taxable income of Canadian controlled | X34: =X32*U28 -> 4200 | Y34: Fed
A35: 0.0505 | B35: 5.05% on the first $41,536 of taxable income, + | N35: private corporations. | X35: =SUM(X33:X34) -> 6000
A36: 0.0915 | B36: 9.15% on the next $41,539, +
A37: 0.1116 | B37: 11.16% on the next $66,925, +
A38: 0.1216 | B38: 12.16% on the next $70,000, +
A39: 0.1316 | B39: 13.16 % on the amount over $220,000
A41: Provincial Surtax
A42: 0.2 | B42: tax above $4484
A43: 0.36 | B43: tax above $5739
A45: Combined Federal & Ontario Tax Brackets and Tax Rates Including Surtaxes - 2016
A47: Tax owing calculations | C47: Income upper limit of range | D47: 2016 Taxable Income | E47: 2016 Marginal Tax Rates
A48: Total tax owing by increment | B48: Tax rate | D48: Increment | I48: Cumulative tax owing
M49: =E7 -> -25257.8202
A50: =B50*C50 -> 8327.968 | B50: 0.2005 | C50: 41536 | E50: first $41,536 | I50: =A50 -> 8327.968 | J50: up to | K50: =C50 -> 41536 | M50: =I50 -> 8327.968
A51: =B51*D51 -> 904.659 | B51: 0.2415 | C51: 45282 | D51: =C51-C50 -> 3746 | E51: over $41,536 up to $45,282 | I51: =SUM(A50:A51) -> 9232.627 | J51: up to | K51: =C51 -> 45282 | M51: =A51 -> 904.659
A52: =B52*D52 -> 8261.3795 | B52: 0.2965 | C52: 73145 | D52: 27863 | E52: over $45,282 up to $73,145 | I52: =SUM(A50:A52) -> 17494.0065 | J52: up to | K52: 73145 | M52: =A52 -> 8261.3795
A53: 3125.964 | B53: 0.3148 | C53: 83075 | D53: 9930 | E53: over $73,145 up to $83,075 | I53: =SUM(A50:A53) -> 20619.9705 | J53: up to | K53: 83075 | M53: =A53 -> 3125.964
A54: 1050.9289 | B54: 0.3389 | C54: 86176 | D54: 3101 | E54: over $83,075 up to $86,176 | I54: =SUM(A50:A54) -> 21670.8994 | J54: up to | K54: 86176 | M54: =A54 -> 1050.9289
A55: 1663.1117 | B55: 0.3791 | C55: 90563 | D55: 4387 | E55: over $86,176 up to $90,563 | I55: =SUM(A50:A55) -> 23334.0111 | J55: up to | K55: 90563 | M55: =A55 -> 1663.1117
A56: 21629.0325 | B56: 0.4341 | C56: 140388 | D56: 49825 | E56: over $90,563 up to $140,388 | I56: =SUM(A50:A56) -> 44963.0436 | J56: up to | K56: 140388 | M56: 21629.0325
A57: 4460.9292 | B57: 0.4641 | C57: 150000 | D57: 9612 | E57: over $140,388 up to $150,000 | I57: =SUM(A50:A57) -> 49423.9728 | J57: up to | K57: 150000 | M57: 4460.9292
A58: 23985 | B58: 0.4797 | C58: 200000 | D58: 50000 | E58: over $150,000 up to $200,000 | I58: =SUM(A50:A58) -> 73408.9728 | J58: up to | K58: 200000 | M58: =(M49-K57)*B58 -> -84071.17635
A59: 10394 | B59: 0.5197 | C59: 220000 | D59: 20000 | E59: over $200,000 up to $220,000 | I59: =SUM(A50:A59) -> 83802.9728 | J59: up to | K59: 220000 | M59: =SUM(M50:M58)-B63-B65 -> -36873.85905
B60: 0.5353 | C60: no limit | E60: over $220,000
A62: Ontario basic personal amount | B62: Tax payable reduction
A63: 10011 | B63: =A63*A35 -> 505.5555
A64: Federal basic personal amount
A65: 11474 | B65: =A65*A29 -> 1721.1
A70: End of worksheet

Sheet CCA Rate Table
A1: Capital Cost Allowance (CCA) rates
A2: In this list, you will find the more common depreciable properties a farming business may use. The CCA rates appear at the end
A3: of the list. For information on the CCA rates for Class 13, Class 14, Class 34, Class 43.1, and Part XVII of the Income Tax Act,
A4: call 1-800-959-5525.
A6: Depreciable property | B6: Class No. | D6: Depreciable property | E6: Class No.
A7: Aircraft – Acquired before May 26, 1976 | B7: 16 | D7: Hay balers and stookers
A8: Aircraft – Acquired after May 25, 1976 | B8: 9 | D8: Drawn | E8: 8
A9: Bee equipment | B9: 8 | D9: Self-propelled | E9: 10
A10: Boats and component parts | B10: 7 | D10: Hay loaders | E10: 8
A11: Breakwater | D11: Ice machines | E11: 8
A12: Cement or stone | B12: 3 | D12: Incubators | E12: 8
A13: Wood | B13: 6 | D13: Irrigation equipment – Overhead | E13: 8
A14: Brooders | B14: 8 | D14: Irrigation ponds | E14: 6
A15: Buildings and component parts | D15: Leasehold interest | E15: 13
A16: Wood, galvanized, or portable | B16: 6 | D16: Manure spreaders | E16: 8
A17: Other: | D17: Milking machines | E17: 8
A18: Acquired after 1978 and before 1988* | B18: 3 | D18: Mixers | E18: 8
A19: Acquired after 1987 | B19: 1 | D19: Mowers | E19: 8
A20: Fruit and vegetable storage (after Feb. 19, 1973) | B20: 8 | D20: Nets | E20: 8
A21: Casing, cribwork for water wells | B21: 8 | D21: Office equipment including photocopiers, fax machines | E21: 8
A22: Chain-saws | B22: 10 | D22: Outboard motors | E22: 10
A23: Cleaners – grain or seed | B23: 8 | D23: Passenger vehicles | E23: 10 or 10.1
A24: Combines | D24: Piping – Permanent | E24: 2
A25: Drawn | B25: 8 | D25: Planters – All types | E25: 8
A26: Self-propelled | B26: 10 | D26: Ploughs | E26: 8
A27: Coolers – Milk | B27: 8 | D27: Pumps | E27: 8
A28: Cream separators | B28: 8 | D28: Rakes | E28: 8
A29: Cultivators | B29: 8 | D29: Roads or other surface areas – Paved or concrete | E29: 17
A30: Dams | D30: Silo fillers | E30: 8
A31: Cement, stone, wood, or earth | B31: 1 | D31: Silos | E31: 8
A32: Diggers – All types | B32: 8 | D32: Sleighs | E32: 10
A33: Discs | B33: 8 | D33: Sprayers | E33: 8
A34: Docks | B34: 3 | D34: Stable cleaners | E34: 8
A35: Drills – All types | B35: 8 | D35: Stalk cutters | E35: 8
A36: Dugouts, dikes, and lagoons | B36: 6 | D36: Swathers
A37: Electric-generating equipment – portable | B37: 8 | D37: Drawn | E37: 8
A38: Electric motors | B38: 8 | D38: Self-propelled | E38: 10
A39: Electronic office equipment and data network infrastructure equipment | B39: 8, 45, 46, 50, 52 | D39: Threshers | E39: 8
A40: Elevators | B40: 8 | D40: Tillers – All types | E40: 8
A41: Engines – Stationary | B41: 8 | D41: Tools
A42: Fences – All types | B42: 6 | D42: Less than $500 | E42: 12
A43: Forage harvesters | D43: $500 and more | E43: 8
A44: Drawn | B44: 8 | D44: Tractors | E44: 10
A45: Self-propelled | B45: 10 | D45: Trailers | E45: 10
A46: Graders – Fruit or vegetable | B46: 8 | D46: Trucks | E46: 10
A47: Grain-drying equipment | B47: 8 | D47: Trucks (freight) | E47: 16
A48: Grain loaders | B48: 8 | D48: Wagons | E48: 10
A49: Grain separators | B49: 8 | D49: Water towers | E49: 6
A50: Grain-storage building | D50: Weeders | E50: 8
A51: Wood, galvanized steel | B51: 6 | D51: Welding equipment | E51: 8
A52: Other | B52: 1 | D52: Well equipment | E52: 8
A53: Greenhouses (all except as noted below) | B53: 6 | D53: Wharves
A54: Greenhouses of rigid frames covered with replaceable flexible plastic | B54: 8 | D54: Cement, steel, or stone | E54: 3
A55: Grinder | B55: 8 | D55: Wood | E55: 6
A56: Harness | B56: 10 | D56: Wind chargers | E56: 8
A57: Harrows | B57: 8 | D57: Wind-energy conversion equipment
D58: acquired before February 22, 1994 | E58: 34
D59: acquired after February 21, 1994 | E59: 43.1
A61: * You may add to or alter a Class 3 building after 1987. In this case, there is a limit on the amount you can include in
A62: Class 3. The most you can include in Class 3 is the lower of $500,000 or 25% of the building’s cost on December 31, 1987.
A63: In Class 1, include any costs you incur that are over this limit.
A65: Class | B65: Rate | D65: Class | E65: Rate
A66: Class 1 | B66: 0.04 | D66: Class 10.1 | E66: 0.3
A67: Class 2 | B67: 0.06 | D67: Class 12 | E67: 1
A68: Class 3 | B68: 0.05 | D68: Class 16 | E68: 0.4
A69: Class 6 | B69: 0.1 | D69: Class 17 | E69: 0.08
A70: Class 7 | B70: 0.15 | D70: Class 45 | E70: 0.45
A71: Class 8 | B71: 0.2 | D71: Class 46 | E71: 0.3
A72: Class 9 | B72: 0.25 | D72: Class 50 | E72: 0.55
A73: Class 10 | B73: 0.3 | D73: Class 52 | E73: 1
A75: Note:
A76: Quota is not subject to the 50 % first year regulations. The rules permit 75% of the investment to be depreciated
A77: at a rate of 7% per year, from year one forward.
A79: End of worksheet
